Workbook

Sheet original
A1: CREDITS TRIMESTRIELS OCTOBRE - NOVEMBRE - DECEMBRE 2015 | D1: FOURN. A | M1: FOURN. B | V1: FOURN. C | AE1: FOURN. D | AN1: FOURN. E | AW1: FOURN. F | BF1: FOURN. G | BO1: FOURN. H | BX1: FOURN. I-A | CC1: FOURN. I-B | CH1: TOTAL CRÉDITS
D3: DIRECT | H3: INDIRECT | L3: CRÉDIT | M3: DIRECT | Q3: INDIRECT | U3: CRÉDIT | V3: DIRECT | Z3: INDIRECT | AD3: CRÉDIT | AE3: DIRECT | AI3: INDIRECT | AM3: CRÉDIT | AN3: DIRECT | AR3: INDIRECT | AV3: CRÉDIT | AW3: DIRECT | BA3: INDIRECT | BE3: CRÉDIT | BF3: DIRECT | BJ3: INDIRECT | BN3: CRÉDIT | BO3: DIRECT | BS3: INDIRECT | BW3: CRÉDIT | BX3: DIRECT | CB3: CRÉDIT | CC3: DIRECT | CG3: CRÉDIT
A5: # CLIENT | B5: Nom de la succursale/Store Name | C5: Ville/City | D5: OCTOBRE | E5: NOVEMBRE | F5: DECEMBRE | G5: TOTAL DIR | H5: OCTOBRE | I5: NOVEMBRE | J5: DECEMBRE | K5: TOTAL MCK | L5: 0.05 | M5: OCTOBRE | N5: NOVEMBRE | O5: DECEMBRE | P5: TOTAL DIR | Q5: OCTOBRE | R5: NOVEMBRE | S5: DECEMBRE | T5: TOTAL MCK | U5: 0.05 | V5: OCTOBRE | W5: NOVEMBRE | X5: DECEMBRE | Y5: TOTAL DIR | Z5: OCTOBRE | AA5: NOVEMBRE | AB5: DECEMBRE | AC5: TOTAL MCK | AD5: 0.1 | AE5: OCTOBRE | AF5: NOVEMBRE | AG5: DECEMBRE | AH5: TOTAL DIR | AI5: OCTOBRE | AJ5: NOVEMBRE | AK5: DECEMBRE | AL5: TOTAL MCK | AM5: 0.1 | AN5: OCTOBRE | AO5: NOVEMBRE | AP5: DECEMBRE | AQ5: TOTAL DIR | AR5: OCTOBRE | AS5: NOVEMBRE | AT5: DECEMBRE | AU5: TOTAL MCK | AV5: 0.05 | AW5: OCTOBRE | AX5: NOVEMBRE | AY5: DECEMBRE | AZ5: TOTAL DIR | BA5: OCTOBRE | BB5: NOVEMBRE | BC5: DECEMBRE | BD5: TOTAL MCK | BE5: 0.1 | BF5: OCT - NOV - DEC | BI5: TOTAL DIR | BJ5: OCTOBRE | BK5: NOVEMBRE | BL5: DECEMBRE | BM5: TOTAL MCK | BN5: 0.05 | BO5: OCTOBRE | BP5: NOVEMBRE | BQ5: DECEMBRE | BR5: TOTAL DIR | BS5: OCTOBRE | BT5: NOVEMBRE | BU5: DECEMBRE | BV5: TOTAL MCK | BW5: 0.1 | BX5: OCTOBRE | BY5: NOVEMBRE | BZ5: DECEMBRE | CA5: TOTAL DIR | CB5: 2,5% | CC5: =BX5 -> OCTOBRE | CD5: NOVEMBRE | CE5: DECEMBRE | CF5: TOTAL DIR | CG5: 0.05
A6: 3520 | B6: Client A | C6: Waterloo | G6: =SUM(D6:F6) -> 0 | K6: =SUM(H6:J6) -> 0 | L6: =(G6+K6)*0.05 -> 0 | P6: =SUM(M6:O6) -> 0 | Q6: 25.75 | R6: 301.27 | S6: 335.38 | T6: =SUM(Q6:S6) -> 662.4 | U6: =(P6+T6)*0.05 -> 33.12 | V6: =27.52+28.42+12.91 -> 68.85 | W6: =50.05+28.42+166.32 -> 244.79 | X6: 86.58 | Y6: =SUM(V6:X6) -> 400.22 | Z6: 12.32 | AC6: =SUM(Z6:AB6) -> 12.32 | AD6: =(Y6+AC6)*0.1 -> 41.254 | AE6: 156.54 | AF6: 243.65 | AG6: 141.01 | AH6: =SUM(AE6:AG6) -> 541.2 | AI6: 54.866 | AJ6: 62.29 | AK6: 73.01 | AL6: =SUM(AI6:AK6) -> 190.166 | AM6: =(AH6+AL6)*0.1 -> 73.1366 | AQ6: =SUM(AN6:AP6) -> 0 | AU6: =SUM(AR6:AT6) -> 0 | AV6: =(AQ6+AU6)*0.05 -> 0 | AZ6: =SUM(AW6:AY6) -> 0 | BD6: =SUM(BA6:BC6) -> 0 | BE6: =(AZ6+BD6)*0.1 -> 0 | BI6: =SUM(BF6:BH6) -> 0 | BM6: =SUM(BJ6:BL6) -> 0 | BN6: =(BI6+BM6)*0.05 -> 0 | BR6: =SUM(BO6:BQ6) -> 0 | BV6: =SUM(BS6:BU6) -> 0 | BW6: =(BR6+BV6)*0.1 -> 0 | CA6: =SUM(BX6:BZ6) -> 0 | CB6: =CA6*0.025 -> 0 | CF6: =SUM(CC6:CE6) -> 0 | CG6: =CF6*0.05 -> 0 | CH6: =L6+U6+AD6+AM6+AV6+BN6+BW6+BE6+CB6+CG6 -> 147.5106
A7: 3510 | B7: Client B | C7: Windsor | G7: 0 | K7: 0 | L7: 0 | P7: 0 | Q7: 86.99 | R7: 864.04 | S7: 117.09 | T7: 1068.12 | U7: 53.406 | Y7: 0 | AC7: 0 | AD7: 0 | AE7: 2477.68 | AF7: -2048.79 | AG7: 647.45 | AH7: 1076.34 | AI7: 38.37 | AJ7: 176.08 | AK7: 4.8 | AL7: 219.25 | AM7: 129.559 | AQ7: 0 | AU7: 0 | AV7: 0 | AZ7: 0 | BD7: 0 | BE7: 0 | BG7: 210 | BI7: 210 | BJ7: 173.8 | BK7: 51.8 | BL7: 225.5 | BM7: 451.1 | BN7: 33.055 | BR7: 0 | BV7: 0 | BW7: 0 | CA7: 0 | CB7: 0 | CF7: 0 | CG7: 0 | CH7: 216.02
A8: 3562 | B8: Client C | C8: Gatineau | G8: 0 | K8: 0 | L8: 0 | P8: 0 | Q8: 32.6 | R8: 40.91 | S8: 46.08 | T8: 119.59 | U8: 5.9795 | Y8: 0 | Z8: 3.56 | AB8: 30.8 | AC8: 34.36 | AD8: 3.436 | AE8: 173.37 | AG8: 504.54 | AH8: 677.91 | AI8: 107.6 | AJ8: 34.67 | AK8: 65.5 | AL8: 207.77 | AM8: 88.568 | AQ8: 0 | AU8: 0 | AV8: 0 | AW8: =-49+157 -> 108 | AZ8: 108 | BD8: 0 | BE8: 10.8 | BI8: 0 | BM8: 0 | BN8: 0 | BR8: 0 | BV8: 0 | BW8: 0 | CA8: 0 | CB8: 0 | CF8: 0 | CG8: 0 | CH8: 108.7835
A9: 3579 | B9: Client D | C9: St-Jean-de-Dieu | G9: 0 | K9: 0 | L9: 0 | O9: 1255 | P9: 1255 | Q9: 15.9 | R9: 179.29 | S9: 70.2 | T9: 265.39 | U9: 76.0195 | Y9: 0 | Z9: 3.56 | AC9: 3.56 | AD9: 0.356 | AH9: 0 | AI9: 73.43 | AJ9: 312.752 | AK9: 129.57 | AL9: 515.752 | AM9: 51.5752 | AQ9: 0 | AU9: 0 | AV9: 0 | AZ9: 0 | BD9: 0 | BE9: 0 | BI9: 0 | BM9: 0 | BN9: 0 | BR9: 0 | BV9: 0 | BW9: 0 | CA9: 0 | CB9: 0 | CF9: 0 | CG9: 0 | CH9: 127.9507
A10: 3583 | B10: Client E | C10: Québec | G10: 0 | K10: 0 | L10: 0 | P10: 0 | R10: 453.31 | S10: 29.53 | T10: 482.84 | U10: 24.142 | Y10: 0 | AA10: 12.32 | AC10: 12.32 | AD10: 1.232 | AH10: 0 | AJ10: 81.13 | AK10: 71.97 | AL10: 153.1 | AM10: 15.31 | AQ10: 0 | AU10: 0 | AV10: 0 | AZ10: 0 | BD10: 0 | BE10: 0 | BI10: 0 | BK10: 9.2 | BM10: 9.2 | BN10: 0.46 | BR10: 0 | BV10: 0 | BW10: 0 | CA10: 0 | CB10: 0 | CF10: 0 | CG10: 0 | CH10: 41.144
A11: 3585 | B11: Client F | C11: Montréal | G11: 0 | K11: 0 | L11: 0 | P11: 0 | Q11: 1137.28 | R11: 54.07 | S11: 57.41 | T11: 1248.76 | U11: 62.438 | Y11: 0 | AA11: 7.12 | AC11: 7.12 | AD11: 0.712 | AF11: 1.14 | AH11: 1.14 | AI11: 1341.11 | AJ11: 43.46 | AK11: 26.68 | AL11: 1411.25 | AM11: 141.239 | AQ11: 0 | AU11: 0 | AV11: 0 | AZ11: 0 | BD11: 0 | BE11: 0 | BI11: 0 | BK11: 76 | BM11: 76 | BN11: 3.8 | BR11: 0 | BV11: 0 | BW11: 0 | CA11: 0 | CB11: 0 | CF11: 0 | CG11: 0 | CH11: 208.189
A12: 3518 | B12: Client G | C12: Cantley | G12: 0 | K12: 0 | L12: =(G12+K12)*0.05 -> 0 | P12: 0 | T12: 0 | U12: =(P12+T12)*0.05 -> 0 | Y12: 0 | AC12: 0 | AD12: =(Y12+AC12)*0.1 -> 0 | AH12: 0 | AL12: 0 | AM12: =(AH12+AL12)*0.1 -> 0 | AQ12: 0 | AU12: 0 | AV12: =(AQ12+AU12)*0.05 -> 0 | AZ12: 0 | BD12: 0 | BE12: =(AZ12+BD12)*0.1 -> 0 | BI12: 0 | BM12: 0 | BN12: =(BI12+BM12)*0.05 -> 0 | BR12: 0 | BV12: 0 | BW12: =(BR12+BV12)*0.1 -> 0 | CA12: 0 | CB12: =CA12*0.025 -> 0 | CF12: 0 | CG12: =CF12*0.05 -> 0 | CH12: =L12+U12+AD12+AM12+AV12+BN12+BW12+BE12+CB12+CG12 -> 0
A13: 3428 | B13: Client H | C13: St-Rémi | G13: 0 | K13: 0 | L13: 0 | P13: 0 | Q13: 78.07 | R13: 46.92 | S13: 46.21 | T13: 171.2 | U13: 8.56 | Y13: 0 | Z13: 6.16 | AA13: 15.88 | AC13: 22.04 | AD13: 2.204 | AG13: 1415.41 | AH13: 1415.41 | AI13: 26.852 | AJ13: 38.43 | AK13: 7.44 | AL13: 72.722 | AM13: 148.8132 | AQ13: 0 | AU13: 0 | AV13: 0 | AZ13: 0 | BD13: 0 | BE13: 0 | BG13: 537.47 | BI13: 537.47 | BM13: 0 | BN13: 26.8735 | BR13: 0 | BV13: 0 | BW13: 0 | CA13: 0 | CB13: 0 | CF13: 0 | CG13: 0 | CH13: 186.4507
A14: 3281 | B14: Client I | C14: Pointe-aux-Trembles | G14: 0 | K14: 0 | L14: 0 | P14: 0 | Q14: -92.14 | R14: 120.02 | S14: 47.37 | T14: 75.25 | U14: 3.7625 | Y14: 0 | AC14: 0 | AD14: 0 | AE14: 2014.4 | AF14: 168.6 | AG14: 284.86 | AH14: 2467.86 | AI14: 151.15 | AJ14: 51.83 | AK14: 132.11 | AL14: 335.09 | AM14: 280.295 | AQ14: 0 | AU14: 0 | AV14: 0 | AZ14: 0 | BD14: 0 | BE14: 0 | BI14: 0 | BJ14: 315.3 | BM14: 315.3 | BN14: 15.765 | BR14: 0 | BV14: 0 | BW14: 0 | CA14: 0 | CB14: 0 | CF14: 0 | CG14: 0 | CH14: 299.8225
A15: 3523 | B15: Client J | C15: St-Lambert | G15: 0 | K15: 0 | L15: 0 | P15: 0 | Q15: 401.85 | R15: 339.49 | S15: 141.55 | T15: 882.89 | U15: 44.1445 | Y15: 0 | Z15: 12.32 | AA15: 25.6 | AB15: 15.29 | AC15: 53.21 | AD15: 5.321 | AG15: 596.27 | AH15: 596.27 | AI15: 125.15 | AJ15: 98.66 | AK15: 122.79 | AL15: 346.6 | AM15: 94.287 | AQ15: 0 | AU15: 0 | AV15: 0 | AW15: 193 | AX15: 139 | AY15: =100+361 -> 461 | AZ15: 793 | BD15: 0 | BE15: 79.3 | BI15: 0 | BJ15: 4.6 | BK15: 44.9 | BL15: 105.9 | BM15: 155.4 | BN15: 7.77 | BR15: 0 | BV15: 0 | BW15: 0 | CA15: 0 | CB15: 0 | CF15: 0 | CG15: 0 | CH15: 230.8225
A16: 3555 | B16: Client K | C16: Longueuil | G16: 0 | J16: 36.44 | K16: 36.44 | L16: 1.822 | P16: 0 | Q16: 55.61 | R16: 75.15 | S16: 18.2 | T16: 148.96 | U16: 7.448 | Y16: 0 | AB16: 2.91 | AC16: 2.91 | AD16: 0.291 | AH16: 0 | AI16: 51.65 | AJ16: 52.31 | AL16: 103.96 | AM16: 10.396 | AQ16: 0 | AU16: 0 | AV16: 0 | AZ16: 0 | BD16: 0 | BE16: 0 | BG16: 231 | BI16: 231 | BM16: 0 | BN16: 11.55 | BR16: 0 | BV16: 0 | BW16: 0 | CA16: 0 | CB16: 0 | CF16: 0 | CG16: 0 | CH16: 31.507
A17: 3345 | B17: Client L | C17: Shawinigan | G17: 0 | K17: 0 | L17: 0 | P17: 0 | Q17: 25.42 | R17: 20.5 | S17: 16.5 | T17: 62.42 | U17: 3.121 | Y17: 0 | Z17: 23 | AB17: 16.84 | AC17: 39.84 | AD17: 3.984 | AE17: 125.89 | AF17: -472.82 | AH17: -346.93 | AI17: 4.95 | AK17: 14.88 | AL17: 19.83 | AM17: -32.71 | AQ17: 0 | AU17: 0 | AV17: 0 | AZ17: 0 | BD17: 0 | BE17: 0 | BG17: 1660 | BI17: 1660 | BJ17: 849 | BL17: 816 | BM17: 1665 | BN17: 166.25 | BR17: 0 | BV17: 0 | BW17: 0 | CA17: 0 | CB17: 0 | CF17: 0 | CG17: 0 | CH17: 140.645
A18: 3543 | B18: Client M | C18: Plessisville | G18: 0 | K18: 0 | L18: 0 | P18: 0 | Q18: 485.48 | R18: 391.48 | S18: 71.08 | T18: 948.04 | U18: 47.402 | Y18: 0 | Z18: 27.52 | AB18: 24.64 | AC18: 52.16 | AD18: 5.216 | AG18: 264.27 | AH18: 264.27 | AI18: 147.686 | AJ18: 140.07 | AK18: 26.69 | AL18: 314.446 | AM18: 57.8716 | AQ18: 0 | AU18: 0 | AV18: 0 | AZ18: 0 | BD18: 0 | BE18: 0 | BG18: 545 | BI18: =SUM(BG18:BH18) -> 545 | BK18: 553.5 | BL18: 38 | BM18: 591.5 | BN18: 56.825 | BR18: 0 | BV18: 0 | BW18: 0 | CA18: 0 | CB18: 0 | CF18: 0 | CG18: 0 | CH18: 167.3146
A19: 3527 | B19: Client N | C19: St-Jean-sur-Richelieu | E19: 299.99 | F19: 224.49 | G19: 524.48 | K19: 0 | L19: 26.224 | P19: 0 | R19: 269.91 | S19: 100.01 | T19: 369.92 | U19: 18.496 | Y19: 0 | AB19: 63.64 | AC19: 63.64 | AD19: 6.364 | AF19: 564.67 | AG19: 743.64 | AH19: 1308.31 | AJ19: 249.742 | AK19: 242.75 | AL19: 492.492 | AM19: 180.0802 | AQ19: 0 | AU19: 0 | AV19: 0 | AX19: =2940+153 -> 3093 | AY19: =252+2467 -> 2719 | AZ19: 5812 | BD19: 0 | BE19: 581.2 | BI19: =SUM(BF19:BH19) -> 0 | BM19: 0 | BN19: 0 | BR19: 0 | BV19: 0 | BW19: 0 | BY19: 3213.1 | BZ19: 1305.15 | CA19: 4518.25 | CB19: 112.95625 | CF19: 0 | CG19: 0 | CH19: 925.32045
A20: 3133 | B20: Client O | C20: Matane | F20: 298.59 | G20: 298.59 | K20: 0 | L20: 14.9295 | N20: 991 | P20: 991 | Q20: 170.83 | R20: 641.18 | S20: 27.8 | T20: 839.81 | U20: 91.5405 | V20: =50.05+49.37+88.3 -> 187.72 | W20: =185.05+55.85 -> 240.9 | X20: 32.5 | Y20: 461.12 | AB20: 12.32 | AC20: 12.32 | AD20: 47.344 | AH20: 0 | AI20: 172.52 | AJ20: 7.8 | AK20: 25.52 | AL20: 205.84 | AM20: 20.584 | AQ20: 0 | AU20: 0 | AV20: 0 | AZ20: 0 | BD20: 0 | BE20: 0 | BG20: 386 | BI20: 386 | BJ20: 385.5 | BK20: 20 | BM20: 405.5 | BN20: 39.575 | BR20: 0 | BV20: 0 | BW20: 0 | BZ20: 69 | CA20: 69 | CB20: 1.725 | CF20: 0 | CG20: 0 | CH20: 215.698
A21: 3536 | B21: Client P | C21: Montréal | G21: 0 | K21: 0 | L21: 0 | P21: 0 | T21: 0 | U21: 0 | Y21: 0 | AC21: 0 | AD21: 0 | AH21: 0 | AL21: 0 | AM21: 0 | AQ21: 0 | AU21: 0 | AV21: 0 | AZ21: 0 | BD21: 0 | BE21: 0 | BG21: 1649.6 | BI21: 1649.6 | BM21: 0 | BN21: 82.48 | BR21: 0 | BV21: 0 | BW21: 0 | CA21: 0 | CB21: 0 | CF21: 0 | CG21: 0 | CH21: 82.48
A22: 3512 | B22: Client Q | C22: St-Jean-de-Matha | E22: 42.75 | G22: 42.75 | K22: 0 | L22: =(G22+K22)*0.05 -> 2.1375 | M22: 1604 | N22: 25 | P22: 1629 | Q22: 526.38 | R22: 467.42 | S22: 19.84 | T22: 1013.64 | U22: 132.132 | Y22: 0 | Z22: 14.98 | AB22: 15.88 | AC22: 30.86 | AD22: =(Y22+AC22)*0.1 -> 3.086 | AE22: 425.44 | AG22: 863.82 | AH22: 1289.26 | AI22: 336.26 | AJ22: 355.9 | AK22: 287.683 | AL22: 979.843 | AM22: =(AH22+AL22)*0.1 -> 226.9103 | AQ22: 0 | AU22: 0 | AV22: 0 | AW22: =28+353.5+365.5 -> 747 | AX22: =140+1514.5+197 -> 1851.5 | AY22: =56+244.5 -> 300.5 | AZ22: 2899 | BD22: 0 | BE22: 289.9 | BI22: 0 | BM22: 0 | BN22: 0 | BR22: 0 | BV22: 0 | BW22: 0 | BX22: 138 | CA22: 138 | CB22: 3.45 | CF22: 0 | CG22: 0 | CH22: 657.6158
A23: 3436 | B23: Client R | C23: St-Hyacinthe | E23: 105.33 | F23: 118.38 | G23: 223.71 | K23: 0 | L23: 11.1855 | P23: 0 | R23: 13.68 | S23: 20.37 | T23: 34.05 | U23: =(P23+T23)*0.05 -> 1.7025 | Y23: 0 | AA23: 12.32 | AB23: 6.16 | AC23: 18.48 | AD23: 1.848 | AG23: 456.32 | AH23: 456.32 | AJ23: 63.25 | AK23: 42.52 | AL23: 105.77 | AM23: 56.209 | AQ23: 0 | AU23: 0 | AV23: =(AQ23+AU23)*0.05 -> 0 | AZ23: 0 | BD23: 0 | BE23: =(AZ23+BD23)*0.1 -> 0 | BG23: 1234.46 | BI23: 1234.46 | BK23: 457.6 | BL23: 881.6 | BM23: 1339.2 | BN23: 128.683 | BR23: 0 | BV23: 0 | BW23: =(BR23+BV23)*0.1 -> 0 | CA23: 0 | CB23: 0 | CF23: 0 | CG23: =CF23*0.05 -> 0 | CH23: 199.628
A24: 3521 | B24: Client S | C24: Montmagny | G24: 0 | K24: 0 | L24: 0 | M24: 600 | P24: 600 | Q24: 253.42 | R24: 62.29 | S24: 91.62 | T24: 407.33 | U24: 50.3665 | Y24: 0 | Z24: 27.3 | AA24: 10.03 | AC24: 37.33 | AD24: 3.733 | AE24: 167.29 | AF24: 569.3 | AG24: 486.07 | AH24: 1222.66 | AI24: 182.82 | AJ24: 124.33 | AK24: 288.1 | AL24: 595.25 | AM24: 181.791 | AQ24: 0 | AU24: 0 | AV24: 0 | AZ24: 0 | BD24: 0 | BE24: 0 | BG24: 819.3 | BI24: 819.3 | BJ24: -268.64 | BM24: -268.64 | BN24: =(BI24+BM24)*0.05 -> 27.533 | BR24: 0 | BV24: 0 | BW24: 0 | CA24: 0 | CB24: 0 | CF24: 0 | CG24: 0 | CH24: =L24+U24+AD24+AM24+AV24+BN24+BW24+BE24+CB24+CG24 -> 263.4235
A25: 3199 | B25: Client T | C25: Jonquière | G25: 0 | K25: 0 | L25: 0 | P25: 0 | Q25: 41.75 | R25: 5.9 | S25: 6.58 | T25: 54.23 | U25: 2.7115 | Y25: 0 | AB25: 6.16 | AC25: 6.16 | AD25: 0.616 | AH25: 0 | AI25: 46.63 | AJ25: 37.44 | AL25: 84.07 | AM25: 8.407 | AQ25: 0 | AU25: 0 | AV25: 0 | AZ25: 0 | BD25: 0 | BE25: 0 | BI25: 0 | BK25: 9.2 | BL25: 9.2 | BM25: 18.4 | BN25: 0.92 | BR25: 0 | BV25: 0 | BW25: 0 | CA25: 0 | CB25: =CA25*0.025 -> 0 | CF25: 0 | CG25: 0 | CH25: 12.6545
A26: 3291 | B26: Client U | C26: St-Tite | G26: 0 | K26: 0 | L26: 0 | P26: 0 | Q26: 89.5 | R26: 456.55 | S26: 125.55 | T26: 671.6 | U26: 33.58 | X26: 90.36 | Y26: 90.36 | Z26: 3.56 | AA26: 3.56 | AB26: 8.82 | AC26: 15.94 | AD26: 10.63 | AE26: 945.58 | AH26: 945.58 | AI26: 167.54 | AJ26: 301.4 | AK26: 31.01 | AL26: 499.95 | AM26: 144.553 | AQ26: 0 | AU26: 0 | AV26: 0 | AZ26: 0 | BD26: 0 | BE26: 0 | BI26: 0 | BM26: 0 | BN26: 0 | BR26: 0 | BV26: 0 | BW26: 0 | CA26: 0 | CB26: 0 | CF26: 0 | CG26: 0 | CH26: 188.763
A27: 3296 | B27: Client V | C27: Joliette | G27: 0 | K27: 0 | L27: 0 | P27: 0 | Q27: 112.93 | R27: 145.2 | S27: 170.15 | T27: 428.28 | U27: 21.414 | Y27: 0 | Z27: 14.24 | AA27: 10.68 | AB27: 30.12 | AC27: 55.04 | AD27: 5.504 | AE27: 427.49 | AF27: 858.01 | AG27: 661.53 | AH27: 1947.03 | AI27: 110.96 | AJ27: 16.08 | AK27: 85.23 | AL27: 212.27 | AM27: 215.93 | AQ27: 0 | AU27: 0 | AV27: 0 | AZ27: 0 | BD27: 0 | BE27: 0 | BG27: 907.82 | BI27: 907.82 | BJ27: 68.5 | BK27: 566.55 | BL27: 427.2 | BM27: 1062.25 | BN27: 98.5035 | BR27: 0 | BV27: 0 | BW27: 0 | CA27: 0 | CB27: 0 | CF27: 0 | CG27: 0 | CH27: 341.3515
A28: 195 | B28: Client W | C28: Sherbrooke | G28: 0 | K28: 0 | L28: 0 | P28: 0 | Q28: 15.68 | R28: 44 | S28: 19.97 | T28: 79.65 | U28: 3.9825 | Y28: 0 | AA28: 18.48 | AC28: 18.48 | AD28: 1.848 | AE28: -1979.43 | AF28: 171.42 | AG28: 283.79 | AH28: -1524.22 | AI28: 471.12 | AJ28: 126.95 | AK28: 81.478 | AL28: 679.548 | AM28: -84.4672 | AQ28: 0 | AU28: 0 | AV28: 0 | AZ28: 0 | BD28: 0 | BE28: 0 | BG28: 23 | BI28: 23 | BL28: 13.8 | BM28: 13.8 | BN28: 1.84 | BR28: 0 | BV28: 0 | BW28: 0 | CA28: 0 | CB28: 0 | CF28: 0 | CG28: 0 | CH28: -76.7967
A29: 3138 | B29: Client X | C29: Pierrefonds | G29: 0 | K29: 0 | L29: 0 | N29: 660 | P29: 660 | R29: 20.7 | S29: 17.05 | T29: 37.75 | U29: 34.8875 | Y29: 0 | AA29: 6.16 | AB29: 12.32 | AC29: 18.48 | AD29: 1.848 | AH29: 0 | AJ29: 291.08 | AK29: 42.1 | AL29: 333.18 | AM29: 33.318 | AQ29: 0 | AU29: 0 | AV29: 0 | AZ29: 0 | BD29: 0 | BE29: 0 | BG29: 562.05 | BI29: 562.05 | BK29: 562.05 | BM29: 562.05 | BN29: 56.205 | BR29: 0 | BV29: 0 | BW29: 0 | CA29: 0 | CB29: 0 | CF29: 0 | CG29: 0 | CH29: 126.2585
A30: 3567 | B30: Client Y | C30: Gatineau | G30: 0 | K30: 0 | L30: 0 | P30: 0 | Q30: 194.13 | S30: 140.47 | T30: 334.6 | U30: 16.73 | Y30: 0 | Z30: 22.35 | AB30: 19.5 | AC30: 41.85 | AD30: 4.185 | AH30: 0 | AI30: 21.22 | AJ30: 59.84 | AK30: 17.25 | AL30: 98.31 | AM30: 9.831 | AQ30: 0 | AU30: 0 | AV30: 0 | AW30: =50+282 -> 332 | AX30: =78+52 -> 130 | AZ30: 462 | BD30: 0 | BE30: 46.2 | BI30: 0 | BM30: 0 | BN30: 0 | BR30: 0 | BV30: 0 | BW30: 0 | CA30: 0 | CB30: 0 | CF30: 0 | CG30: 0 | CH30: 76.946
A31: 3580 | B31: Client Z | C31: Gatineau | G31: 0 | K31: 0 | L31: 0 | P31: 0 | Q31: 9.1 | R31: 149.95 | S31: 17.05 | T31: 176.1 | U31: 8.805 | Y31: 0 | AB31: 3.56 | AC31: 3.56 | AD31: 0.356 | AF31: 73.48 | AH31: 73.48 | AI31: 158.18 | AJ31: 6.31 | AK31: 168.08 | AL31: 332.57 | AM31: 40.605 | AQ31: 0 | AU31: 0 | AV31: 0 | AY31: 78 | AZ31: 78 | BD31: 0 | BE31: 7.8 | BG31: 56 | BI31: 56 | BK31: 75.5 | BM31: 75.5 | BN31: 6.575 | BR31: 0 | BV31: 0 | BW31: 0 | CA31: 0 | CB31: 0 | CF31: 0 | CG31: 0 | CH31: 64.141
A32: 3211 | B32: Client AA | C32: Laurier-Station | G32: 0 | K32: 0 | L32: 0 | P32: 0 | Q32: 56.11 | R32: 134.22 | S32: 84.86 | T32: 275.19 | U32: 13.7595 | Y32: 0 | AA32: 19.44 | AB32: 6.16 | AC32: 25.6 | AD32: 2.56 | AE32: 768.47 | AH32: 768.47 | AI32: 129.95 | AJ32: 232.84 | AK32: 335.334 | AL32: 698.124 | AM32: 146.6594 | AQ32: 0 | AU32: 0 | AV32: 0 | AZ32: 0 | BD32: 0 | BE32: 0 | BI32: 0 | BK32: 38 | BL32: 76 | BM32: 114 | BN32: 5.7 | BR32: 0 | BV32: 0 | BW32: 0 | CA32: 0 | CB32: 0 | CF32: 0 | CG32: 0 | CH32: 168.6789
A33: 3392 | B33: Client AB | C33: Sept-Iles | G33: 0 | K33: 0 | L33: 0 | N33: 555 | P33: 555 | Q33: 78.9 | R33: 145.54 | S33: 36.6 | T33: 261.04 | U33: 40.802 | Y33: 0 | Z33: 12.32 | AA33: 12.32 | AC33: 24.64 | AD33: 2.464 | AE33: 743.2 | AG33: 865.53 | AH33: 1608.73 | AI33: 902.63 | AJ33: 215.72 | AK33: 134.46 | AL33: 1252.81 | AM33: 286.154 | AQ33: 0 | AU33: 0 | AV33: 0 | AZ33: 0 | BD33: 0 | BE33: 0 | BI33: 0 | BJ33: 18.4 | BK33: 127.8 | BL33: 6.9 | BM33: 153.1 | BN33: 7.655 | BR33: 0 | BV33: 0 | BW33: 0 | BX33: 948.5 | BY33: 1127.52 | BZ33: 628.65 | CA33: 2704.67 | CB33: 67.61675 | CD33: 64.75 | CF33: 64.75 | CG33: 3.2375 | CH33: 407.92925
A34: 3496 | B34: Client AC | C34: Boucherville | G34: 0 | K34: 0 | L34: 0 | P34: 0 | S34: 30 | T34: 30 | U34: 1.5 | Y34: 0 | AB34: 4 | AC34: 4 | AD34: 0.4 | AH34: 0 | AK34: 3 | AL34: 3 | AM34: 0.3 | AQ34: 0 | AU34: 0 | AV34: 0 | AZ34: 0 | BD34: 0 | BE34: 0 | BI34: 0 | BM34: 0 | BN34: 0 | BR34: 0 | BV34: 0 | BW34: 0 | CA34: 0 | CB34: 0 | CF34: 0 | CG34: 0 | CH34: 2.2
A35: 3329 | B35: Client AD | C35: St-Bruno | G35: 0 | K35: 0 | L35: 0 | P35: 0 | Q35: 504.44 | R35: 102.41 | S35: 113.63 | T35: 720.48 | U35: 36.024 | Y35: 0 | Z35: 21.36 | AB35: 7.12 | AC35: 28.48 | AD35: 2.848 | AH35: 0 | AI35: 175.25 | AJ35: 306.012 | AK35: 148.63 | AL35: 629.892 | AM35: 62.9892 | AQ35: 0 | AU35: 0 | AV35: 0 | AZ35: 0 | BD35: 0 | BE35: 0 | BG35: -6.5 | BI35: -6.5 | BJ35: 163.6 | BK35: 316 | BL35: 51.8 | BM35: 531.4 | BN35: 26.245 | BR35: 0 | BV35: 0 | BW35: 0 | CA35: 0 | CB35: 0 | CF35: 0 | CG35: 0 | CH35: 128.1062
A36: 3335 | B36: Client AE | C36: Courcelette | G36: 0 | K36: 0 | L36: 0 | P36: 0 | Q36: 45.5 | S36: 64.75 | T36: 110.25 | U36: 5.5125 | Y36: 0 | Z36: 7.12 | AA36: 12.32 | AC36: 19.44 | AD36: 1.944 | AE36: 798.12 | AF36: -256.07 | AH36: 542.05 | AI36: 226.77 | AJ36: 105.37 | AK36: 78.59 | AL36: 410.73 | AM36: 95.278 | AQ36: 0 | AU36: 0 | AV36: 0 | AZ36: 0 | BD36: 0 | BE36: 0 | BI36: 0 | BJ36: 378.8 | BM36: 378.8 | BN36: 18.94 | BR36: 0 | BV36: 0 | BW36: 0 | CA36: 0 | CB36: 0 | CF36: 0 | CG36: 0 | CH36: 121.6745
A37: 3530 | B37: Client AF | C37: Sherbrooke | G37: 0 | K37: 0 | L37: 0 | N37: 395 | P37: 395 | Q37: 322.25 | R37: 246.55 | S37: 161.47 | T37: 730.27 | U37: 56.2635 | Y37: 0 | Z37: 3.56 | AB37: 6.16 | AC37: 9.72 | AD37: 0.972 | AE37: 207.88 | AF37: 194.83 | AH37: 402.71 | AJ37: 34.656 | AK37: 37.12 | AL37: 71.776 | AM37: 47.4486 | AQ37: 0 | AU37: 0 | AV37: 0 | AZ37: 0 | BD37: 0 | BE37: 0 | BG37: 267 | BI37: 267 | BJ37: 13.8 | BK37: 67.9 | BM37: 81.7 | BN37: 17.435 | BR37: 0 | BV37: 0 | BW37: 0 | CA37: 0 | CB37: 0 | CF37: 0 | CG37: 0 | CH37: 122.1191
A38: 3352 | B38: Client AG | C38: Montréal | D38: 876.92 | E38: 593.29 | F38: 1541.95 | G38: 3012.16 | K38: 0 | L38: 150.608 | N38: 304 | P38: 304 | Q38: 56.06 | R38: 332.4 | S38: 30.5 | T38: 418.96 | U38: 36.148 | V38: 17.96 | Y38: 17.96 | Z38: 39.84 | AA38: 126.84 | AB38: 90.38 | AC38: 257.06 | AD38: 27.502 | AE38: 1589.06 | AF38: -792.77 | AG38: 674.95 | AH38: 1471.24 | AI38: 110.58 | AJ38: 196.39 | AK38: 78.42 | AL38: 385.39 | AM38: 185.663 | AQ38: 0 | AU38: 0 | AV38: 0 | AZ38: 0 | BD38: 0 | BE38: 0 | BG38: 56.25 | BI38: 56.25 | BJ38: 13.8 | BK38: 103 | BL38: 20.7 | BM38: 137.5 | BN38: 9.6875 | BR38: 0 | BV38: 0 | BW38: 0 | CA38: 0 | CB38: 0 | CF38: 0 | CG38: 0 | CH38: 409.6085
A39: 4062 | B39: Client AH | C39: Eastman | G39: 0 | K39: 0 | L39: 0 | N39: 573 | P39: 573 | Q39: 13.26 | R39: 253 | S39: 76 | T39: 342.26 | U39: 45.763 | Y39: 0 | AB39: 6.16 | AC39: 6.16 | AD39: 0.616 | AE39: 1683.2 | AF39: -1685.7 | AG39: 85.89 | AH39: 83.39 | AI39: 4.29 | AJ39: 55.14 | AK39: 42.79 | AL39: 102.22 | AM39: 18.561 | AQ39: 0 | AU39: 0 | AV39: 0 | AZ39: 0 | BD39: 0 | BE39: 0 | BI39: 0 | BK39: 76 | BL39: 38 | BM39: 114 | BN39: 5.7 | BR39: 0 | BV39: 0 | BW39: 0 | CA39: 0 | CB39: 0 | CF39: 0 | CG39: 0 | CH39: 70.64
A40: 3148 | B40: Client AI | C40: Cap-aux-Meules | G40: 0 | K40: 0 | L40: 0 | M40: -89 | N40: 2345 | O40: -510 | P40: 1746 | Q40: 139.95 | R40: 29.35 | S40: 245.33 | T40: 414.63 | U40: 108.0315 | Y40: 0 | Z40: 18.48 | AC40: 18.48 | AD40: 1.848 | AE40: 867.19 | AF40: -1328.89 | AG40: 570.45 | AH40: 108.75 | AI40: 18.57 | AJ40: 71.82 | AK40: 33.69 | AL40: 124.08 | AM40: 23.283 | AQ40: 0 | AU40: 0 | AV40: 0 | AZ40: 0 | BD40: 0 | BE40: 0 | BI40: 0 | BL40: 152 | BM40: 152 | BN40: 7.6 | BR40: 0 | BV40: 0 | BW40: 0 | BX40: 1250.1 | BY40: 751.81 | BZ40: 755 | CA40: 2756.91 | CB40: 68.92275 | CF40: 0 | CG40: 0 | CH40: 209.68525
A41: 3528 | B41: Client AJ | C41: Ferme-Neuve | D41: 24.62 | G41: 24.62 | I41: 37.18 | K41: 37.18 | L41: 3.09 | M41: 16 | P41: 16 | R41: 93.5 | S41: 111.5 | T41: 205 | U41: 11.05 | Y41: 0 | AA41: 18.48 | AC41: 18.48 | AD41: 1.848 | AF41: 1360.91 | AH41: 1360.91 | AI41: 183.422 | AJ41: 44.29 | AK41: 16.13 | AL41: 243.842 | AM41: 160.4752 | AQ41: 0 | AU41: 0 | AV41: 0 | AZ41: 0 | BD41: 0 | BE41: 0 | BI41: 0 | BK41: 36.8 | BM41: 36.8 | BN41: 1.84 | BR41: 0 | BV41: 0 | BW41: 0 | CA41: 0 | CB41: 0 | CF41: 0 | CG41: 0 | CH41: 178.3032
A42: 3287 | B42: Client AK | C42: St-Zacharie | G42: 0 | K42: 0 | L42: 0 | P42: 0 | Q42: 22.95 | R42: 217.48 | S42: 16 | T42: 256.43 | U42: 12.8215 | Y42: 0 | AB42: 23 | AC42: 23 | AD42: 2.3 | AH42: 0 | AI42: 56.03 | AJ42: 57.08 | AK42: 46.77 | AL42: 159.88 | AM42: 15.988 | AQ42: 0 | AU42: 0 | AV42: 0 | AZ42: 0 | BD42: 0 | BE42: 0 | BI42: 0 | BM42: 0 | BN42: 0 | BR42: 0 | BV42: 0 | BW42: 0 | CA42: 0 | CB42: 0 | CF42: 0 | CG42: 0 | CH42: 31.1095
A43: 3377 | B43: Client AL | C43: Lévis | G43: 0 | K43: 0 | L43: 0 | P43: 0 | Q43: 22.27 | R43: 18.82 | S43: 79.12 | T43: 120.21 | U43: 6.0105 | Y43: 0 | Z43: 3.56 | AC43: 3.56 | AD43: 0.356 | AE43: -50.19 | AH43: -50.19 | AI43: 27.82 | AJ43: 28.21 | AK43: 41.514 | AL43: 97.544 | AM43: 4.7354 | AQ43: 0 | AU43: 0 | AV43: 0 | AZ43: 0 | BD43: 0 | BE43: 0 | BI43: 0 | BM43: 0 | BN43: 0 | BR43: 0 | BV43: 0 | BW43: 0 | CA43: 0 | CB43: 0 | CF43: 0 | CG43: 0 | CH43: 11.1019
A44: 3381 | B44: Client AM | C44: Ste-Luce | G44: 0 | K44: 0 | L44: 0 | P44: 0 | Q44: 5.12 | R44: 89.35 | S44: 37.58 | T44: 132.05 | U44: 6.6025 | V44: 28.42 | X44: 216.29 | Y44: 244.71 | AB44: 6.16 | AC44: 6.16 | AD44: 25.087 | AH44: 0 | AI44: 106.11 | AJ44: 17.01 | AK44: 129.85 | AL44: 252.97 | AM44: 25.297 | AQ44: 0 | AU44: 0 | AV44: 0 | AZ44: 0 | BD44: 0 | BE44: 0 | BI44: 0 | BM44: 0 | BN44: 0 | BR44: 0 | BV44: 0 | BW44: 0 | CA44: 0 | CB44: 0 | CF44: 0 | CG44: 0 | CH44: 56.9865
A45: 3576 | B45: Client AN | C45: Québec | G45: 0 | K45: 0 | L45: 0 | P45: 0 | Q45: 18.2 | R45: 40.6 | S45: 169.05 | T45: 227.85 | U45: 11.3925 | Y45: 0 | AC45: 0 | AD45: 0 | AH45: 0 | AI45: 8.69 | AJ45: 89.673 | AK45: 3.87 | AL45: 102.233 | AM45: 10.2233 | AQ45: 0 | AU45: 0 | AV45: 0 | AZ45: 0 | BD45: 0 | BE45: 0 | BG45: 10 | BI45: 10 | BK45: 38 | BM45: 38 | BN45: 2.4 | BR45: 0 | BV45: 0 | BW45: 0 | CA45: 0 | CB45: 0 | CF45: 0 | CG45: 0 | CH45: 24.0158
A46: 3548 | B46: Client AO | C46: Trois-Rivières | G46: 0 | K46: 0 | L46: 0 | P46: 0 | Q46: 51.62 | R46: 84.3 | S46: 78.5 | T46: 214.42 | U46: 10.721 | Y46: 0 | AA46: 3.56 | AC46: 3.56 | AD46: 0.356 | AF46: -548.41 | AH46: -548.41 | AI46: 37.75 | AJ46: 51.36 | AK46: 22.05 | AL46: 111.16 | AM46: -43.725 | AQ46: 0 | AU46: 0 | AV46: 0 | AW46: =100+770+147 -> 1017 | AX46: 124 | AZ46: 1141 | BD46: 0 | BE46: 114.1 | BI46: 0 | BK46: 38 | BM46: 38 | BN46: 1.9 | BR46: 0 | BV46: 0 | BW46: 0 | CA46: 0 | CB46: 0 | CF46: 0 | CG46: 0 | CH46: 83.352
A47: TOTAL CRÉDITS À FACTURER AUX FOURNISSEURS | G47: =SUM(G6:G46) -> 4126.31 | K47: =SUM(K6:K46) -> 73.62 | L47: =SUM(L6:L46) -> 209.9965 | P47: =SUM(P6:P46) -> 8724 | T47: 15041.86 | U47: 1188.293 | Y47: =SUM(Y6:Y46) -> 1214.37 | AC47: =SUM(AC6:AC46) -> 1010.32 | AD47: =SUM(AD6:AD46) -> 222.469 | AH47: =SUM(AH6:AH46) -> 18159.54 | AL47: 13154.68 | AM47: 3131.422 | AQ47: =SUM(AQ6:AQ46) -> 0 | AU47: =SUM(AU6:AU46) -> 0 | AV47: =SUM(AV6:AV46) -> 0 | AZ47: =SUM(AZ6:AZ46) -> 11293 | BD47: =SUM(BD6:BD46) -> 0 | BE47: =SUM(BE6:BE46) -> 1129.3 | BI47: =SUM(BI6:BI46) -> 9148.45 | BM47: =SUM(BM6:BM46) -> 8246.86 | BN47: =SUM(BN6:BN46) -> 869.7655 | BR47: =SUM(BR6:BR46) -> 0 | BV47: =SUM(BV6:BV46) -> 0 | BW47: =SUM(BW6:BW46) -> 0 | CA47: =SUM(CA6:CA46) -> 10186.83 | CB47: =SUM(CB6:CB46) -> 254.67075 | CF47: =SUM(CF6:CF46) -> 64.75 | CG47: =SUM(CG6:CG46) -> 3.2375 | CI47: =SUM(CH6:CH47) -> 7009.15425
CH48: =CG47+CB47+BE47+BW47+BN47+AV47+AM47+AD47+U47+L47 -> 7009.15425
B49: Ventes totales par fournisseur
B50: FOURN. A | C50: =G47+K47 -> 4199.93
B51: FOURN. B | C51: =P47+T47 -> 23765.86
B52: FOURN. C | C52: =Y47+AC47 -> 2224.69
B53: FOURN. D | C53: =AH47+AL47 -> 31314.22
B54: FOURN. E | C54: =AQ47+AU47 -> 0
B55: FOURN. F | C55: =AZ47+BD47 -> 11293
B56: FOURN. G | C56: =BI47+BM47 -> 17395.31
B57: FOURN. H | C57: =BR47+BV47 -> 0
B58: FOURN. I A+B | C58: =CA47+CF47 -> 10251.58

Sheet résultat voulu
A1: CREDITS TRIMESTRIELS OCTOBRE - NOVEMBRE - DECEMBRE 2015 | D1: FOURN. A | M1: FOURN. B | V1: FOURN. C | AE1: FOURN. D | AN1: FOURN. E | AW1: FOURN. F | BF1: FOURN. G | BO1: FOURN. H | BX1: FOURN. I-A | CC1: FOURN. I-B | CH1: TOTAL CRÉDITS
D3: DIRECT | H3: INDIRECT | L3: CRÉDIT | M3: DIRECT | Q3: INDIRECT | U3: CRÉDIT | V3: DIRECT | Z3: INDIRECT | AD3: CRÉDIT | AE3: DIRECT | AI3: INDIRECT | AM3: CRÉDIT | AN3: DIRECT | AR3: INDIRECT | AV3: CRÉDIT | AW3: DIRECT | BA3: INDIRECT | BE3: CRÉDIT | BF3: DIRECT | BJ3: INDIRECT | BN3: CRÉDIT | BO3: DIRECT | BS3: INDIRECT | BW3: CRÉDIT | BX3: DIRECT | CB3: CRÉDIT | CC3: DIRECT | CG3: CRÉDIT
A5: # CLIENT | B5: Nom de la succursale/Store Name | C5: Ville/City | D5: OCTOBRE | E5: NOVEMBRE | F5: DECEMBRE | G5: TOTAL DIR | H5: OCTOBRE | I5: NOVEMBRE | J5: DECEMBRE | K5: TOTAL MCK | L5: 0.05 | M5: OCTOBRE | N5: NOVEMBRE | O5: DECEMBRE | P5: TOTAL DIR | Q5: OCTOBRE | R5: NOVEMBRE | S5: DECEMBRE | T5: TOTAL MCK | U5: 0.05 | V5: OCTOBRE | W5: NOVEMBRE | X5: DECEMBRE | Y5: TOTAL DIR | Z5: OCTOBRE | AA5: NOVEMBRE | AB5: DECEMBRE | AC5: TOTAL MCK | AD5: 0.1 | AE5: OCTOBRE | AF5: NOVEMBRE | AG5: DECEMBRE | AH5: TOTAL DIR | AI5: OCTOBRE | AJ5: NOVEMBRE | AK5: DECEMBRE | AL5: TOTAL MCK | AM5: 0.1 | AN5: OCTOBRE | AO5: NOVEMBRE | AP5: DECEMBRE | AQ5: TOTAL DIR | AR5: OCTOBRE | AS5: NOVEMBRE | AT5: DECEMBRE | AU5: TOTAL MCK | AV5: 0.05 | AW5: OCTOBRE | AX5: NOVEMBRE | AY5: DECEMBRE | AZ5: TOTAL DIR | BA5: OCTOBRE | BB5: NOVEMBRE | BC5: DECEMBRE | BD5: TOTAL MCK | BE5: 0.1 | BF5: OCT - NOV - DEC | BI5: TOTAL DIR | BJ5: OCTOBRE | BK5: NOVEMBRE | BL5: DECEMBRE | BM5: TOTAL MCK | BN5: 0.05 | BO5: OCTOBRE | BP5: NOVEMBRE | BQ5: DECEMBRE | BR5: TOTAL DIR | BS5: OCTOBRE | BT5: NOVEMBRE | BU5: DECEMBRE | BV5: TOTAL MCK | BW5: 0.1 | BX5: OCTOBRE | BY5: NOVEMBRE | BZ5: DECEMBRE | CA5: TOTAL DIR | CB5: 2,5% | CC5: =BX5 -> OCTOBRE | CD5: NOVEMBRE | CE5: DECEMBRE | CF5: TOTAL DIR | CG5: 0.05
A6: 3520 | B6: Client A | C6: Waterloo | G6: =SUM(D6:F6) -> 0 | K6: =SUM(H6:J6) -> 0 | L6: =(G6+K6)*0.05 -> 0 | P6: =SUM(M6:O6) -> 0 | Q6: 25.75 | R6: 301.27 | S6: 335.38 | T6: =SUM(Q6:S6) -> 662.4 | U6: =(P6+T6)*0.05 -> 33.12 | V6: =27.52+28.42+12.91 -> 68.85 | W6: =50.05+28.42+166.32 -> 244.79 | X6: 86.58 | Y6: =SUM(V6:X6) -> 400.22 | Z6: 12.32 | AC6: =SUM(Z6:AB6) -> 12.32 | AD6: =(Y6+AC6)*0.1 -> 41.254 | AE6: 156.54 | AF6: 243.65 | AG6: 141.01 | AH6: =SUM(AE6:AG6) -> 541.2 | AI6: 54.866 | AJ6: 62.29 | AK6: 73.01 | AL6: =SUM(AI6:AK6) -> 190.166 | AM6: =(AH6+AL6)*0.1 -> 73.1366 | AQ6: =SUM(AN6:AP6) -> 0 | AU6: =SUM(AR6:AT6) -> 0 | AV6: =(AQ6+AU6)*0.05 -> 0 | AZ6: =SUM(AW6:AY6) -> 0 | BD6: =SUM(BA6:BC6) -> 0 | BE6: =(AZ6+BD6)*0.1 -> 0 | BI6: =SUM(BF6:BH6) -> 0 | BM6: =SUM(BJ6:BL6) -> 0 | BN6: =(BI6+BM6)*0.05 -> 0 | BR6: =SUM(BO6:BQ6) -> 0 | BV6: =SUM(BS6:BU6) -> 0 | BW6: =(BR6+BV6)*0.1 -> 0 | CA6: =SUM(BX6:BZ6) -> 0 | CB6: =CA6*0.025 -> 0 | CF6: =SUM(CC6:CE6) -> 0 | CG6: =CF6*0.05 -> 0 | CH6: =L6+U6+AD6+AM6+AV6+BN6+BW6+BE6+CB6+CG6 -> 147.5106
A7: 3510 | B7: Client B | C7: Windsor | G7: 0 | K7: 0 | L7: 0 | P7: 0 | Q7: 86.99 | R7: 864.04 | S7: 117.09 | T7: 1068.12 | U7: 53.406 | Y7: 0 | AC7: 0 | AD7: 0 | AE7: 2477.68 | AF7: -2048.79 | AG7: 647.45 | AH7: 1076.34 | AI7: 38.37 | AJ7: 176.08 | AK7: 4.8 | AL7: 219.25 | AM7: 129.559 | AQ7: 0 | AU7: 0 | AV7: 0 | AZ7: 0 | BD7: 0 | BE7: 0 | BG7: 210 | BI7: 210 | BJ7: 173.8 | BK7: 51.8 | BL7: 225.5 | BM7: 451.1 | BN7: 33.055 | BR7: 0 | BV7: 0 | BW7: 0 | CA7: 0 | CB7: 0 | CF7: 0 | CG7: 0 | CH7: 216.02
A8: 3562 | B8: Client C | C8: Gatineau | G8: 0 | K8: 0 | L8: 0 | P8: 0 | Q8: 32.6 | R8: 40.91 | S8: 46.08 | T8: 119.59 | U8: 5.9795 | Y8: 0 | Z8: 3.56 | AB8: 30.8 | AC8: 34.36 | AD8: 3.436 | AE8: 173.37 | AG8: 504.54 | AH8: 677.91 | AI8: 107.6 | AJ8: 34.67 | AK8: 65.5 | AL8: 207.77 | AM8: 88.568 | AQ8: 0 | AU8: 0 | AV8: 0 | AW8: =-49+157 -> 108 | AZ8: 108 | BD8: 0 | BE8: 10.8 | BI8: 0 | BM8: 0 | BN8: 0 | BR8: 0 | BV8: 0 | BW8: 0 | CA8: 0 | CB8: 0 | CF8: 0 | CG8: 0 | CH8: 108.7835
A9: 3579 | B9: Client D | C9: St-Jean-de-Dieu | G9: 0 | K9: 0 | L9: 0 | O9: 1255 | P9: 1255 | Q9: 15.9 | R9: 179.29 | S9: 70.2 | T9: 265.39 | U9: 76.0195 | Y9: 0 | Z9: 3.56 | AC9: 3.56 | AD9: 0.356 | AH9: 0 | AI9: 73.43 | AJ9: 312.752 | AK9: 129.57 | AL9: 515.752 | AM9: 51.5752 | AQ9: 0 | AU9: 0 | AV9: 0 | AZ9: 0 | BD9: 0 | BE9: 0 | BI9: 0 | BM9: 0 | BN9: 0 | BR9: 0 | BV9: 0 | BW9: 0 | CA9: 0 | CB9: 0 | CF9: 0 | CG9: 0 | CH9: 127.9507
A10: 3583 | B10: Client E | C10: Québec | G10: 0 | K10: 0 | L10: 0 | P10: 0 | R10: 453.31 | S10: 29.53 | T10: 482.84 | U10: 24.142 | Y10: 0 | AA10: 12.32 | AC10: 12.32 | AD10: 1.232 | AH10: 0 | AJ10: 81.13 | AK10: 71.97 | AL10: 153.1 | AM10: 15.31 | AQ10: 0 | AU10: 0 | AV10: 0 | AZ10: 0 | BD10: 0 | BE10: 0 | BI10: 0 | BK10: 9.2 | BM10: 9.2 | BN10: 0.46 | BR10: 0 | BV10: 0 | BW10: 0 | CA10: 0 | CB10: 0 | CF10: 0 | CG10: 0 | CH10: 41.144
A11: 3585 | B11: Client F | C11: Montréal | G11: 0 | K11: 0 | L11: 0 | P11: 0 | Q11: 1137.28 | R11: 54.07 | S11: 57.41 | T11: 1248.76 | U11: 62.438 | Y11: 0 | AA11: 7.12 | AC11: 7.12 | AD11: 0.712 | AF11: 1.14 | AH11: 1.14 | AI11: 1341.11 | AJ11: 43.46 | AK11: 26.68 | AL11: 1411.25 | AM11: 141.239 | AQ11: 0 | AU11: 0 | AV11: 0 | AZ11: 0 | BD11: 0 | BE11: 0 | BI11: 0 | BK11: 76 | BM11: 76 | BN11: 3.8 | BR11: 0 | BV11: 0 | BW11: 0 | CA11: 0 | CB11: 0 | CF11: 0 | CG11: 0 | CH11: 208.189
A12: 3518 | B12: Client G | C12: Cantley | G12: 0 | K12: 0 | L12: 0 | P12: 0 | T12: 0 | U12: 0 | Y12: 0 | AC12: 0 | AD12: 0 | AH12: 0 | AL12: 0 | AM12: 0 | AQ12: 0 | AU12: 0 | AV12: 0 | AZ12: 0 | BD12: 0 | BE12: 0 | BI12: 0 | BM12: 0 | BN12: 0 | BR12: 0 | BV12: 0 | BW12: 0 | CA12: 0 | CB12: 0 | CF12: 0 | CG12: 0 | CH12: 0
A13: 3428 | B13: Client H | C13: St-Rémi | G13: 0 | K13: 0 | L13: 0 | P13: 0 | Q13: 78.07 | R13: 46.92 | S13: 46.21 | T13: 171.2 | U13: 8.56 | Y13: 0 | Z13: 6.16 | AA13: 15.88 | AC13: 22.04 | AD13: 2.204 | AG13: 1415.41 | AH13: 1415.41 | AI13: 26.852 | AJ13: 38.43 | AK13: 7.44 | AL13: 72.722 | AM13: 148.8132 | AQ13: 0 | AU13: 0 | AV13: 0 | AZ13: 0 | BD13: 0 | BE13: 0 | BG13: 537.47 | BI13: 537.47 | BM13: 0 | BN13: 26.8735 | BR13: 0 | BV13: 0 | BW13: 0 | CA13: 0 | CB13: 0 | CF13: 0 | CG13: 0 | CH13: 186.4507
A14: 3281 | B14: Client I | C14: Pointe-aux-Trembles | G14: 0 | K14: 0 | L14: 0 | P14: 0 | Q14: -92.14 | R14: 120.02 | S14: 47.37 | T14: 75.25 | U14: 3.7625 | Y14: 0 | AC14: 0 | AD14: 0 | AE14: 2014.4 | AF14: 168.6 | AG14: 284.86 | AH14: 2467.86 | AI14: 151.15 | AJ14: 51.83 | AK14: 132.11 | AL14: 335.09 | AM14: 280.295 | AQ14: 0 | AU14: 0 | AV14: 0 | AZ14: 0 | BD14: 0 | BE14: 0 | BI14: 0 | BJ14: 315.3 | BM14: 315.3 | BN14: 15.765 | BR14: 0 | BV14: 0 | BW14: 0 | CA14: 0 | CB14: 0 | CF14: 0 | CG14: 0 | CH14: 299.8225
A15: 3523 | B15: Client J | C15: St-Lambert | G15: 0 | K15: 0 | L15: 0 | P15: 0 | Q15: 401.85 | R15: 339.49 | S15: 141.55 | T15: 882.89 | U15: 44.1445 | Y15: 0 | Z15: 12.32 | AA15: 25.6 | AB15: 15.29 | AC15: 53.21 | AD15: 5.321 | AG15: 596.27 | AH15: 596.27 | AI15: 125.15 | AJ15: 98.66 | AK15: 122.79 | AL15: 346.6 | AM15: 94.287 | AQ15: 0 | AU15: 0 | AV15: 0 | AW15: 193 | AX15: 139 | AY15: =100+361 -> 461 | AZ15: 793 | BD15: 0 | BE15: 79.3 | BI15: 0 | BJ15: 4.6 | BK15: 44.9 | BL15: 105.9 | BM15: 155.4 | BN15: 7.77 | BR15: 0 | BV15: 0 | BW15: 0 | CA15: 0 | CB15: 0 | CF15: 0 | CG15: 0 | CH15: 230.8225
A16: 3555 | B16: Client K | C16: Longueuil | G16: 0 | J16: 36.44 | K16: 36.44 | L16: 1.822 | P16: 0 | Q16: 55.61 | R16: 75.15 | S16: 18.2 | T16: 148.96 | U16: 7.448 | Y16: 0 | AB16: 2.91 | AC16: 2.91 | AD16: 0.291 | AH16: 0 | AI16: 51.65 | AJ16: 52.31 | AL16: 103.96 | AM16: 10.396 | AQ16: 0 | AU16: 0 | AV16: 0 | AZ16: 0 | BD16: 0 | BE16: 0 | BG16: 231 | BI16: 231 | BM16: 0 | BN16: 11.55 | BR16: 0 | BV16: 0 | BW16: 0 | CA16: 0 | CB16: 0 | CF16: 0 | CG16: 0 | CH16: 31.507
A17: 3345 | B17: Client L | C17: Shawinigan | G17: 0 | K17: 0 | L17: 0 | P17: 0 | Q17: 25.42 | R17: 20.5 | S17: 16.5 | T17: 62.42 | U17: 3.121 | Y17: 0 | Z17: 23 | AB17: 16.84 | AC17: 39.84 | AD17: 3.984 | AE17: 125.89 | AF17: -472.82 | AH17: -346.93 | AI17: 4.95 | AK17: 14.88 | AL17: 19.83 | AM17: -32.71 | AQ17: 0 | AU17: 0 | AV17: 0 | AZ17: 0 | BD17: 0 | BE17: 0 | BG17: 1660 | BI17: 1660 | BJ17: 849 | BL17: 816 | BM17: 1665 | BN17: 166.25 | BR17: 0 | BV17: 0 | BW17: 0 | CA17: 0 | CB17: 0 | CF17: 0 | CG17: 0 | CH17: 140.645
A18: 3543 | B18: Client M | C18: Plessisville | G18: 0 | K18: 0 | L18: 0 | P18: 0 | Q18: 485.48 | R18: 391.48 | S18: 71.08 | T18: 948.04 | U18: 47.402 | Y18: 0 | Z18: 27.52 | AB18: 24.64 | AC18: 52.16 | AD18: 5.216 | AG18: 264.27 | AH18: 264.27 | AI18: 147.686 | AJ18: 140.07 | AK18: 26.69 | AL18: 314.446 | AM18: 57.8716 | AQ18: 0 | AU18: 0 | AV18: 0 | AZ18: 0 | BD18: 0 | BE18: 0 | BG18: 545 | BI18: =SUM(BG18:BH18) -> 545 | BK18: 553.5 | BL18: 38 | BM18: 591.5 | BN18: 56.825 | BR18: 0 | BV18: 0 | BW18: 0 | CA18: 0 | CB18: 0 | CF18: 0 | CG18: 0 | CH18: 167.3146
A19: 3527 | B19: Client N | C19: St-Jean-sur-Richelieu | E19: 299.99 | F19: 224.49 | G19: 524.48 | K19: 0 | L19: 26.224 | P19: 0 | R19: 269.91 | S19: 100.01 | T19: 369.92 | U19: 18.496 | Y19: 0 | AB19: 63.64 | AC19: 63.64 | AD19: 6.364 | AF19: 564.67 | AG19: 743.64 | AH19: 1308.31 | AJ19: 249.742 | AK19: 242.75 | AL19: 492.492 | AM19: 180.0802 | AQ19: 0 | AU19: 0 | AV19: 0 | AX19: =2940+153 -> 3093 | AY19: =252+2467 -> 2719 | AZ19: 5812 | BD19: 0 | BE19: 581.2 | BI19: =SUM(BF19:BH19) -> 0 | BM19: 0 | BN19: 0 | BR19: 0 | BV19: 0 | BW19: 0 | BY19: 3213.1 | BZ19: 1305.15 | CA19: 4518.25 | CB19: 112.95625 | CF19: 0 | CG19: 0 | CH19: 925.32045
A20: 3133 | B20: Client O | C20: Matane | F20: 298.59 | G20: 298.59 | K20: 0 | L20: 14.9295 | N20: 991 | P20: 991 | Q20: 170.83 | R20: 641.18 | S20: 27.8 | T20: 839.81 | U20: 91.5405 | V20: =50.05+49.37+88.3 -> 187.72 | W20: =185.05+55.85 -> 240.9 | X20: 32.5 | Y20: 461.12 | AB20: 12.32 | AC20: 12.32 | AD20: 47.344 | AH20: 0 | AI20: 172.52 | AJ20: 7.8 | AK20: 25.52 | AL20: 205.84 | AM20: 20.584 | AQ20: 0 | AU20: 0 | AV20: 0 | AZ20: 0 | BD20: 0 | BE20: 0 | BG20: 386 | BI20: 386 | BJ20: 385.5 | BK20: 20 | BM20: 405.5 | BN20: 39.575 | BR20: 0 | BV20: 0 | BW20: 0 | BZ20: 69 | CA20: 69 | CB20: 1.725 | CF20: 0 | CG20: 0 | CH20: 215.698
A21: 3536 | B21: Client P | C21: Montréal | G21: 0 | K21: 0 | L21: 0 | P21: 0 | T21: 0 | U21: 0 | Y21: 0 | AC21: 0 | AD21: 0 | AH21: 0 | AL21: 0 | AM21: 0 | AQ21: 0 | AU21: 0 | AV21: 0 | AZ21: 0 | BD21: 0 | BE21: 0 | BG21: 1649.6 | BI21: 1649.6 | BM21: 0 | BN21: 82.48 | BR21: 0 | BV21: 0 | BW21: 0 | CA21: 0 | CB21: 0 | CF21: 0 | CG21: 0 | CH21: 82.48
A22: 3512 | B22: Client Q | C22: St-Jean-de-Matha | E22: 42.75 | G22: 42.75 | K22: 0 | L22: 2.1375 | M22: 1604 | N22: 25 | P22: 1629 | Q22: 526.38 | R22: 467.42 | S22: 19.84 | T22: 1013.64 | U22: 132.132 | Y22: 0 | Z22: 14.98 | AB22: 15.88 | AC22: 30.86 | AD22: 3.086 | AE22: 425.44 | AG22: 863.82 | AH22: 1289.26 | AI22: 336.26 | AJ22: 355.9 | AK22: 287.683 | AL22: 979.843 | AM22: 226.9103 | AQ22: 0 | AU22: 0 | AV22: 0 | AW22: =28+353.5+365.5 -> 747 | AX22: =140+1514.5+197 -> 1851.5 | AY22: =56+244.5 -> 300.5 | AZ22: 2899 | BD22: 0 | BE22: 289.9 | BI22: 0 | BM22: 0 | BN22: 0 | BR22: 0 | BV22: 0 | BW22: 0 | BX22: 138 | CA22: 138 | CB22: 3.45 | CF22: 0 | CG22: 0 | CH22: 657.6158
A23: 3436 | B23: Client R | C23: St-Hyacinthe | E23: 105.33 | F23: 118.38 | G23: 223.71 | K23: 0 | L23: 11.1855 | P23: 0 | R23: 13.68 | S23: 20.37 | T23: 34.05 | U23: 1.7025 | Y23: 0 | AA23: 12.32 | AB23: 6.16 | AC23: 18.48 | AD23: 1.848 | AG23: 456.32 | AH23: 456.32 | AJ23: 63.25 | AK23: 42.52 | AL23: 105.77 | AM23: 56.209 | AQ23: 0 | AU23: 0 | AV23: 0 | AZ23: 0 | BD23: 0 | BE23: 0 | BG23: 1234.46 | BI23: 1234.46 | BK23: 457.6 | BL23: 881.6 | BM23: 1339.2 | BN23: 128.683 | BR23: 0 | BV23: 0 | BW23: 0 | CA23: 0 | CB23: 0 | CF23: 0 | CG23: 0 | CH23: 199.628
A24: 3521 | B24: Client S | C24: Montmagny | G24: 0 | K24: 0 | L24: 0 | M24: 600 | P24: 600 | Q24: 253.42 | R24: 62.29 | S24: 91.62 | T24: 407.33 | U24: 50.3665 | Y24: 0 | Z24: 27.3 | AA24: 10.03 | AC24: 37.33 | AD24: 3.733 | AE24: 167.29 | AF24: 569.3 | AG24: 486.07 | AH24: 1222.66 | AI24: 182.82 | AJ24: 124.33 | AK24: 288.1 | AL24: 595.25 | AM24: 181.791 | AQ24: 0 | AU24: 0 | AV24: 0 | AZ24: 0 | BD24: 0 | BE24: 0 | BG24: 819.3 | BI24: 819.3 | BJ24: -268.64 | BM24: -268.64 | BN24: 27.533 | BR24: 0 | BV24: 0 | BW24: 0 | CA24: 0 | CB24: 0 | CF24: 0 | CG24: 0 | CH24: 263.4235
A25: 3199 | B25: Client T | C25: Jonquière | G25: 0 | K25: 0 | L25: 0 | P25: 0 | Q25: 41.75 | R25: 5.9 | S25: 6.58 | T25: 54.23 | U25: 2.7115 | Y25: 0 | AB25: 6.16 | AC25: 6.16 | AD25: 0.616 | AH25: 0 | AI25: 46.63 | AJ25: 37.44 | AL25: 84.07 | AM25: 8.407 | AQ25: 0 | AU25: 0 | AV25: 0 | AZ25: 0 | BD25: 0 | BE25: 0 | BI25: 0 | BK25: 9.2 | BL25: 9.2 | BM25: 18.4 | BN25: 0.92 | BR25: 0 | BV25: 0 | BW25: 0 | CA25: 0 | CB25: 0 | CF25: 0 | CG25: 0 | CH25: 12.6545
A26: 3291 | B26: Client U | C26: St-Tite | G26: 0 | K26: 0 | L26: 0 | P26: 0 | Q26: 89.5 | R26: 456.55 | S26: 125.55 | T26: 671.6 | U26: 33.58 | X26: 90.36 | Y26: 90.36 | Z26: 3.56 | AA26: 3.56 | AB26: 8.82 | AC26: 15.94 | AD26: 10.63 | AE26: 945.58 | AH26: 945.58 | AI26: 167.54 | AJ26: 301.4 | AK26: 31.01 | AL26: 499.95 | AM26: 144.553 | AQ26: 0 | AU26: 0 | AV26: 0 | AZ26: 0 | BD26: 0 | BE26: 0 | BI26: 0 | BM26: 0 | BN26: 0 | BR26: 0 | BV26: 0 | BW26: 0 | CA26: 0 | CB26: 0 | CF26: 0 | CG26: 0 | CH26: 188.763
A27: 3296 | B27: Client V | C27: Joliette | G27: 0 | K27: 0 | L27: 0 | P27: 0 | Q27: 112.93 | R27: 145.2 | S27: 170.15 | T27: 428.28 | U27: 21.414 | Y27: 0 | Z27: 14.24 | AA27: 10.68 | AB27: 30.12 | AC27: 55.04 | AD27: 5.504 | AE27: 427.49 | AF27: 858.01 | AG27: 661.53 | AH27: 1947.03 | AI27: 110.96 | AJ27: 16.08 | AK27: 85.23 | AL27: 212.27 | AM27: 215.93 | AQ27: 0 | AU27: 0 | AV27: 0 | AZ27: 0 | BD27: 0 | BE27: 0 | BG27: 907.82 | BI27: 907.82 | BJ27: 68.5 | BK27: 566.55 | BL27: 427.2 | BM27: 1062.25 | BN27: 98.5035 | BR27: 0 | BV27: 0 | BW27: 0 | CA27: 0 | CB27: 0 | CF27: 0 | CG27: 0 | CH27: 341.3515
A28: 195 | B28: Client W | C28: Sherbrooke | G28: 0 | K28: 0 | L28: 0 | P28: 0 | Q28: 15.68 | R28: 44 | S28: 19.97 | T28: 79.65 | U28: 3.9825 | Y28: 0 | AA28: 18.48 | AC28: 18.48 | AD28: 1.848 | AE28: -1979.43 | AF28: 171.42 | AG28: 283.79 | AH28: -1524.22 | AI28: 471.12 | AJ28: 126.95 | AK28: 81.478 | AL28: 679.548 | AM28: -84.4672 | AQ28: 0 | AU28: 0 | AV28: 0 | AZ28: 0 | BD28: 0 | BE28: 0 | BG28: 23 | BI28: 23 | BL28: 13.8 | BM28: 13.8 | BN28: 1.84 | BR28: 0 | BV28: 0 | BW28: 0 | CA28: 0 | CB28: 0 | CF28: 0 | CG28: 0 | CH28: -76.7967
A29: 3138 | B29: Client X | C29: Pierrefonds | G29: 0 | K29: 0 | L29: 0 | N29: 660 | P29: 660 | R29: 20.7 | S29: 17.05 | T29: 37.75 | U29: 34.8875 | Y29: 0 | AA29: 6.16 | AB29: 12.32 | AC29: 18.48 | AD29: 1.848 | AH29: 0 | AJ29: 291.08 | AK29: 42.1 | AL29: 333.18 | AM29: 33.318 | AQ29: 0 | AU29: 0 | AV29: 0 | AZ29: 0 | BD29: 0 | BE29: 0 | BG29: 562.05 | BI29: 562.05 | BK29: 562.05 | BM29: 562.05 | BN29: 56.205 | BR29: 0 | BV29: 0 | BW29: 0 | CA29: 0 | CB29: 0 | CF29: 0 | CG29: 0 | CH29: 126.2585
A30: 3567 | B30: Client Y | C30: Gatineau | G30: 0 | K30: 0 | L30: 0 | P30: 0 | Q30: 194.13 | S30: 140.47 | T30: 334.6 | U30: 16.73 | Y30: 0 | Z30: 22.35 | AB30: 19.5 | AC30: 41.85 | AD30: 4.185 | AH30: 0 | AI30: 21.22 | AJ30: 59.84 | AK30: 17.25 | AL30: 98.31 | AM30: 9.831 | AQ30: 0 | AU30: 0 | AV30: 0 | AW30: =50+282 -> 332 | AX30: =78+52 -> 130 | AZ30: 462 | BD30: 0 | BE30: 46.2 | BI30: 0 | BM30: 0 | BN30: 0 | BR30: 0 | BV30: 0 | BW30: 0 | CA30: 0 | CB30: 0 | CF30: 0 | CG30: 0 | CH30: 76.946
A31: 3580 | B31: Client Z | C31: Gatineau | G31: 0 | K31: 0 | L31: 0 | P31: 0 | Q31: 9.1 | R31: 149.95 | S31: 17.05 | T31: 176.1 | U31: 8.805 | Y31: 0 | AB31: 3.56 | AC31: 3.56 | AD31: 0.356 | AF31: 73.48 | AH31: 73.48 | AI31: 158.18 | AJ31: 6.31 | AK31: 168.08 | AL31: 332.57 | AM31: 40.605 | AQ31: 0 | AU31: 0 | AV31: 0 | AY31: 78 | AZ31: 78 | BD31: 0 | BE31: 7.8 | BG31: 56 | BI31: 56 | BK31: 75.5 | BM31: 75.5 | BN31: 6.575 | BR31: 0 | BV31: 0 | BW31: 0 | CA31: 0 | CB31: 0 | CF31: 0 | CG31: 0 | CH31: 64.141
A32: 3211 | B32: Client AA | C32: Laurier-Station | G32: 0 | K32: 0 | L32: 0 | P32: 0 | Q32: 56.11 | R32: 134.22 | S32: 84.86 | T32: 275.19 | U32: 13.7595 | Y32: 0 | AA32: 19.44 | AB32: 6.16 | AC32: 25.6 | AD32: 2.56 | AE32: 768.47 | AH32: 768.47 | AI32: 129.95 | AJ32: 232.84 | AK32: 335.334 | AL32: 698.124 | AM32: 146.6594 | AQ32: 0 | AU32: 0 | AV32: 0 | AZ32: 0 | BD32: 0 | BE32: 0 | BI32: 0 | BK32: 38 | BL32: 76 | BM32: 114 | BN32: 5.7 | BR32: 0 | BV32: 0 | BW32: 0 | CA32: 0 | CB32: 0 | CF32: 0 | CG32: 0 | CH32: 168.6789
A33: 3392 | B33: Client AB | C33: Sept-Iles | G33: 0 | K33: 0 | L33: 0 | N33: 555 | P33: 555 | Q33: 78.9 | R33: 145.54 | S33: 36.6 | T33: 261.04 | U33: 40.802 | Y33: 0 | Z33: 12.32 | AA33: 12.32 | AC33: 24.64 | AD33: 2.464 | AE33: 743.2 | AG33: 865.53 | AH33: 1608.73 | AI33: 902.63 | AJ33: 215.72 | AK33: 134.46 | AL33: 1252.81 | AM33: 286.154 | AQ33: 0 | AU33: 0 | AV33: 0 | AZ33: 0 | BD33: 0 | BE33: 0 | BI33: 0 | BJ33: 18.4 | BK33: 127.8 | BL33: 6.9 | BM33: 153.1 | BN33: 7.655 | BR33: 0 | BV33: 0 | BW33: 0 | BX33: 948.5 | BY33: 1127.52 | BZ33: 628.65 | CA33: 2704.67 | CB33: 67.61675 | CD33: 64.75 | CF33: 64.75 | CG33: 3.2375 | CH33: 407.92925
A34: 3496 | B34: Client AC | C34: Boucherville | G34: 0 | K34: 0 | L34: 0 | P34: 0 | S34: 30 | T34: 30 | U34: 1.5 | Y34: 0 | AB34: 4 | AC34: 4 | AD34: 0.4 | AH34: 0 | AK34: 3 | AL34: 3 | AM34: 0.3 | AQ34: 0 | AU34: 0 | AV34: 0 | AZ34: 0 | BD34: 0 | BE34: 0 | BI34: 0 | BM34: 0 | BN34: 0 | BR34: 0 | BV34: 0 | BW34: 0 | CA34: 0 | CB34: 0 | CF34: 0 | CG34: 0 | CH34: 2.2
A35: 3329 | B35: Client AD | C35: St-Bruno | G35: 0 | K35: 0 | L35: 0 | P35: 0 | Q35: 504.44 | R35: 102.41 | S35: 113.63 | T35: 720.48 | U35: 36.024 | Y35: 0 | Z35: 21.36 | AB35: 7.12 | AC35: 28.48 | AD35: 2.848 | AH35: 0 | AI35: 175.25 | AJ35: 306.012 | AK35: 148.63 | AL35: 629.892 | AM35: 62.9892 | AQ35: 0 | AU35: 0 | AV35: 0 | AZ35: 0 | BD35: 0 | BE35: 0 | BG35: -6.5 | BI35: -6.5 | BJ35: 163.6 | BK35: 316 | BL35: 51.8 | BM35: 531.4 | BN35: 26.245 | BR35: 0 | BV35: 0 | BW35: 0 | CA35: 0 | CB35: 0 | CF35: 0 | CG35: 0 | CH35: 128.1062
A36: 3335 | B36: Client AE | C36: Courcelette | G36: 0 | K36: 0 | L36: 0 | P36: 0 | Q36: 45.5 | S36: 64.75 | T36: 110.25 | U36: 5.5125 | Y36: 0 | Z36: 7.12 | AA36: 12.32 | AC36: 19.44 | AD36: 1.944 | AE36: 798.12 | AF36: -256.07 | AH36: 542.05 | AI36: 226.77 | AJ36: 105.37 | AK36: 78.59 | AL36: 410.73 | AM36: 95.278 | AQ36: 0 | AU36: 0 | AV36: 0 | AZ36: 0 | BD36: 0 | BE36: 0 | BI36: 0 | BJ36: 378.8 | BM36: 378.8 | BN36: 18.94 | BR36: 0 | BV36: 0 | BW36: 0 | CA36: 0 | CB36: 0 | CF36: 0 | CG36: 0 | CH36: 121.6745
A37: 3530 | B37: Client AF | C37: Sherbrooke | G37: 0 | K37: 0 | L37: 0 | N37: 395 | P37: 395 | Q37: 322.25 | R37: 246.55 | S37: 161.47 | T37: 730.27 | U37: 56.2635 | Y37: 0 | Z37: 3.56 | AB37: 6.16 | AC37: 9.72 | AD37: 0.972 | AE37: 207.88 | AF37: 194.83 | AH37: 402.71 | AJ37: 34.656 | AK37: 37.12 | AL37: 71.776 | AM37: 47.4486 | AQ37: 0 | AU37: 0 | AV37: 0 | AZ37: 0 | BD37: 0 | BE37: 0 | BG37: 267 | BI37: 267 | BJ37: 13.8 | BK37: 67.9 | BM37: 81.7 | BN37: 17.435 | BR37: 0 | BV37: 0 | BW37: 0 | CA37: 0 | CB37: 0 | CF37: 0 | CG37: 0 | CH37: 122.1191
A38: 3352 | B38: Client AG | C38: Montréal | D38: 876.92 | E38: 593.29 | F38: 1541.95 | G38: 3012.16 | K38: 0 | L38: 150.608 | N38: 304 | P38: 304 | Q38: 56.06 | R38: 332.4 | S38: 30.5 | T38: 418.96 | U38: 36.148 | V38: 17.96 | Y38: 17.96 | Z38: 39.84 | AA38: 126.84 | AB38: 90.38 | AC38: 257.06 | AD38: 27.502 | AE38: 1589.06 | AF38: -792.77 | AG38: 674.95 | AH38: 1471.24 | AI38: 110.58 | AJ38: 196.39 | AK38: 78.42 | AL38: 385.39 | AM38: 185.663 | AQ38: 0 | AU38: 0 | AV38: 0 | AZ38: 0 | BD38: 0 | BE38: 0 | BG38: 56.25 | BI38: 56.25 | BJ38: 13.8 | BK38: 103 | BL38: 20.7 | BM38: 137.5 | BN38: 9.6875 | BR38: 0 | BV38: 0 | BW38: 0 | CA38: 0 | CB38: 0 | CF38: 0 | CG38: 0 | CH38: 409.6085
A39: 4062 | B39: Client AH | C39: Eastman | G39: 0 | K39: 0 | L39: 0 | N39: 573 | P39: 573 | Q39: 13.26 | R39: 253 | S39: 76 | T39: 342.26 | U39: 45.763 | Y39: 0 | AB39: 6.16 | AC39: 6.16 | AD39: 0.616 | AE39: 1683.2 | AF39: -1685.7 | AG39: 85.89 | AH39: 83.39 | AI39: 4.29 | AJ39: 55.14 | AK39: 42.79 | AL39: 102.22 | AM39: 18.561 | AQ39: 0 | AU39: 0 | AV39: 0 | AZ39: 0 | BD39: 0 | BE39: 0 | BI39: 0 | BK39: 76 | BL39: 38 | BM39: 114 | BN39: 5.7 | BR39: 0 | BV39: 0 | BW39: 0 | CA39: 0 | CB39: 0 | CF39: 0 | CG39: 0 | CH39: 70.64
A40: 3148 | B40: Client AI | C40: Cap-aux-Meules | G40: 0 | K40: 0 | L40: 0 | M40: -89 | N40: 2345 | O40: -510 | P40: 1746 | Q40: 139.95 | R40: 29.35 | S40: 245.33 | T40: 414.63 | U40: 108.0315 | Y40: 0 | Z40: 18.48 | AC40: 18.48 | AD40: 1.848 | AE40: 867.19 | AF40: -1328.89 | AG40: 570.45 | AH40: 108.75 | AI40: 18.57 | AJ40: 71.82 | AK40: 33.69 | AL40: 124.08 | AM40: 23.283 | AQ40: 0 | AU40: 0 | AV40: 0 | AZ40: 0 | BD40: 0 | BE40: 0 | BI40: 0 | BL40: 152 | BM40: 152 | BN40: 7.6 | BR40: 0 | BV40: 0 | BW40: 0 | BX40: 1250.1 | BY40: 751.81 | BZ40: 755 | CA40: 2756.91 | CB40: 68.92275 | CF40: 0 | CG40: 0 | CH40: 209.68525
A41: 3528 | B41: Client AJ | C41: Ferme-Neuve | D41: 24.62 | G41: 24.62 | I41: 37.18 | K41: 37.18 | L41: 3.09 | M41: 16 | P41: 16 | R41: 93.5 | S41: 111.5 | T41: 205 | U41: 11.05 | Y41: 0 | AA41: 18.48 | AC41: 18.48 | AD41: 1.848 | AF41: 1360.91 | AH41: 1360.91 | AI41: 183.422 | AJ41: 44.29 | AK41: 16.13 | AL41: 243.842 | AM41: 160.4752 | AQ41: 0 | AU41: 0 | AV41: 0 | AZ41: 0 | BD41: 0 | BE41: 0 | BI41: 0 | BK41: 36.8 | BM41: 36.8 | BN41: 1.84 | BR41: 0 | BV41: 0 | BW41: 0 | CA41: 0 | CB41: 0 | CF41: 0 | CG41: 0 | CH41: 178.3032
A42: 3287 | B42: Client AK | C42: St-Zacharie | G42: 0 | K42: 0 | L42: 0 | P42: 0 | Q42: 22.95 | R42: 217.48 | S42: 16 | T42: 256.43 | U42: 12.8215 | Y42: 0 | AB42: 23 | AC42: 23 | AD42: 2.3 | AH42: 0 | AI42: 56.03 | AJ42: 57.08 | AK42: 46.77 | AL42: 159.88 | AM42: 15.988 | AQ42: 0 | AU42: 0 | AV42: 0 | AZ42: 0 | BD42: 0 | BE42: 0 | BI42: 0 | BM42: 0 | BN42: 0 | BR42: 0 | BV42: 0 | BW42: 0 | CA42: 0 | CB42: 0 | CF42: 0 | CG42: 0 | CH42: 31.1095
A43: 3377 | B43: Client AL | C43: Lévis | G43: 0 | K43: 0 | L43: 0 | P43: 0 | Q43: 22.27 | R43: 18.82 | S43: 79.12 | T43: 120.21 | U43: 6.0105 | Y43: 0 | Z43: 3.56 | AC43: 3.56 | AD43: 0.356 | AE43: -50.19 | AH43: -50.19 | AI43: 27.82 | AJ43: 28.21 | AK43: 41.514 | AL43: 97.544 | AM43: 4.7354 | AQ43: 0 | AU43: 0 | AV43: 0 | AZ43: 0 | BD43: 0 | BE43: 0 | BI43: 0 | BM43: 0 | BN43: 0 | BR43: 0 | BV43: 0 | BW43: 0 | CA43: 0 | CB43: 0 | CF43: 0 | CG43: 0 | CH43: 11.1019
A44: 3381 | B44: Client AM | C44: Ste-Luce | G44: 0 | K44: 0 | L44: 0 | P44: 0 | Q44: 5.12 | R44: 89.35 | S44: 37.58 | T44: 132.05 | U44: 6.6025 | V44: 28.42 | X44: 216.29 | Y44: 244.71 | AB44: 6.16 | AC44: 6.16 | AD44: 25.087 | AH44: 0 | AI44: 106.11 | AJ44: 17.01 | AK44: 129.85 | AL44: 252.97 | AM44: 25.297 | AQ44: 0 | AU44: 0 | AV44: 0 | AZ44: 0 | BD44: 0 | BE44: 0 | BI44: 0 | BM44: 0 | BN44: 0 | BR44: 0 | BV44: 0 | BW44: 0 | CA44: 0 | CB44: 0 | CF44: 0 | CG44: 0 | CH44: 56.9865
A45: 3576 | B45: Client AN | C45: Québec | G45: 0 | K45: 0 | L45: 0 | P45: 0 | Q45: 18.2 | R45: 40.6 | S45: 169.05 | T45: 227.85 | U45: 11.3925 | Y45: 0 | AC45: 0 | AD45: 0 | AH45: 0 | AI45: 8.69 | AJ45: 89.673 | AK45: 3.87 | AL45: 102.233 | AM45: 10.2233 | AQ45: 0 | AU45: 0 | AV45: 0 | AZ45: 0 | BD45: 0 | BE45: 0 | BG45: 10 | BI45: 10 | BK45: 38 | BM45: 38 | BN45: 2.4 | BR45: 0 | BV45: 0 | BW45: 0 | CA45: 0 | CB45: 0 | CF45: 0 | CG45: 0 | CH45: 24.0158
A46: 3548 | B46: Client AO | C46: Trois-Rivières | G46: 0 | K46: 0 | L46: 0 | P46: 0 | Q46: 51.62 | R46: 84.3 | S46: 78.5 | T46: 214.42 | U46: 10.721 | Y46: 0 | AA46: 3.56 | AC46: 3.56 | AD46: 0.356 | AF46: -548.41 | AH46: -548.41 | AI46: 37.75 | AJ46: 51.36 | AK46: 22.05 | AL46: 111.16 | AM46: -43.725 | AQ46: 0 | AU46: 0 | AV46: 0 | AW46: =100+770+147 -> 1017 | AX46: 124 | AZ46: 1141 | BD46: 0 | BE46: 114.1 | BI46: 0 | BK46: 38 | BM46: 38 | BN46: 1.9 | BR46: 0 | BV46: 0 | BW46: 0 | CA46: 0 | CB46: 0 | CF46: 0 | CG46: 0 | CH46: 83.352
A47: TOTAL CRÉDITS À FACTURER AUX FOURNISSEURS | G47: =SUM(G6:G46) -> 4126.31 | K47: =SUM(K6:K46) -> 73.62 | L47: =SUM(L6:L46) -> 209.9965 | P47: =SUM(P6:P46) -> 8724 | T47: 15041.86 | U47: 1188.293 | Y47: =SUM(Y6:Y46) -> 1214.37 | AC47: =SUM(AC6:AC46) -> 1010.32 | AD47: =SUM(AD6:AD46) -> 222.469 | AH47: =SUM(AH6:AH46) -> 18159.54 | AL47: 13154.68 | AM47: 3131.422 | AQ47: =SUM(AQ6:AQ46) -> 0 | AU47: =SUM(AU6:AU46) -> 0 | AV47: =SUM(AV6:AV46) -> 0 | AZ47: =SUM(AZ6:AZ46) -> 11293 | BD47: =SUM(BD6:BD46) -> 0 | BE47: =SUM(BE6:BE46) -> 1129.3 | BI47: =SUM(BI6:BI46) -> 9148.45 | BM47: =SUM(BM6:BM46) -> 8246.86 | BN47: =SUM(BN6:BN46) -> 869.7655 | BR47: =SUM(BR6:BR46) -> 0 | BV47: =SUM(BV6:BV46) -> 0 | BW47: =SUM(BW6:BW46) -> 0 | CA47: =SUM(CA6:CA46) -> 10186.83 | CB47: =SUM(CB6:CB46) -> 254.67075 | CF47: =SUM(CF6:CF46) -> 64.75 | CG47: =SUM(CG6:CG46) -> 3.2375 | CI47: =SUM(CH6:CH47) -> 7009.15425
CH48: =CG47+CB47+BE47+BW47+BN47+AV47+AM47+AD47+U47+L47 -> 7009.15425
B49: Ventes totales par fournisseur
B50: FOURN. A | C50: =G47+K47 -> 4199.93
B51: FOURN. B | C51: =P47+T47 -> 23765.86
B52: FOURN. C | C52: =Y47+AC47 -> 2224.69
B53: FOURN. D | C53: =AH47+AL47 -> 31314.22
B54: FOURN. E | C54: =AQ47+AU47 -> 0
B55: FOURN. F | C55: =AZ47+BD47 -> 11293
B56: FOURN. G | C56: =BI47+BM47 -> 17395.31
B57: FOURN. H | C57: =BR47+BV47 -> 0
B58: FOURN. I | C58: =CA47+CF47 -> 10251.58

Sheet après avoir exécuté macro
A1: CREDITS TRIMESTRIELS OCTOBRE - NOVEMBRE - DECEMBRE 2015 | D1: FOURN. A | M1: FOURN. B | V1: FOURN. C | AE1: FOURN. D | AN1: FOURN. E | AW1: FOURN. F | BF1: FOURN. G | BO1: FOURN. H | BX1: FOURN. I-A | CC1: FOURN. I-B | CH1: TOTAL CRÉDITS
D3: DIRECT | H3: INDIRECT | L3: CRÉDIT | M3: DIRECT | Q3: INDIRECT | U3: CRÉDIT | V3: DIRECT | Z3: INDIRECT | AD3: CRÉDIT | AE3: DIRECT | AI3: INDIRECT | AM3: CRÉDIT | AN3: DIRECT | AR3: INDIRECT | AV3: CRÉDIT | AW3: DIRECT | BA3: INDIRECT | BE3: CRÉDIT | BF3: DIRECT | BJ3: INDIRECT | BN3: CRÉDIT | BO3: DIRECT | BS3: INDIRECT | BW3: CRÉDIT | BX3: DIRECT | CB3: CRÉDIT | CC3: DIRECT | CG3: CRÉDIT
A5: # CLIENT | B5: Nom de la succursale/Store Name | C5: Ville/City | D5: OCTOBRE | E5: NOVEMBRE | F5: DECEMBRE | G5: TOTAL DIR | H5: OCTOBRE | I5: NOVEMBRE | J5: DECEMBRE | K5: TOTAL MCK | L5: 0.05 | M5: OCTOBRE | N5: NOVEMBRE | O5: DECEMBRE | P5: TOTAL DIR | Q5: OCTOBRE | R5: NOVEMBRE | S5: DECEMBRE | T5: TOTAL MCK | U5: 0.05 | V5: OCTOBRE | W5: NOVEMBRE | X5: DECEMBRE | Y5: TOTAL DIR | Z5: OCTOBRE | AA5: NOVEMBRE | AB5: DECEMBRE | AC5: TOTAL MCK | AD5: 0.1 | AE5: OCTOBRE | AF5: NOVEMBRE | AG5: DECEMBRE | AH5: TOTAL DIR | AI5: OCTOBRE | AJ5: NOVEMBRE | AK5: DECEMBRE | AL5: TOTAL MCK | AM5: 0.1 | AN5: OCTOBRE | AO5: NOVEMBRE | AP5: DECEMBRE | AQ5: TOTAL DIR | AR5: OCTOBRE | AS5: NOVEMBRE | AT5: DECEMBRE | AU5: TOTAL MCK | AV5: 0.05 | AW5: OCTOBRE | AX5: NOVEMBRE | AY5: DECEMBRE | AZ5: TOTAL DIR | BA5: OCTOBRE | BB5: NOVEMBRE | BC5: DECEMBRE | BD5: TOTAL MCK | BE5: 0.1 | BF5: OCT - NOV - DEC | BI5: TOTAL DIR | BJ5: OCTOBRE | BK5: NOVEMBRE | BL5: DECEMBRE | BM5: TOTAL MCK | BN5: 0.05 | BO5: OCTOBRE | BP5: NOVEMBRE | BQ5: DECEMBRE | BR5: TOTAL DIR | BS5: OCTOBRE | BT5: NOVEMBRE | BU5: DECEMBRE | BV5: TOTAL MCK | BW5: 0.1 | BX5: OCTOBRE | BY5: NOVEMBRE | BZ5: DECEMBRE | CA5: TOTAL DIR | CB5: 2,5% | CC5: =BX5 -> OCTOBRE | CD5: NOVEMBRE | CE5: DECEMBRE | CF5: TOTAL DIR | CG5: 0.05
A6: 3520 | B6: Client A | C6: Waterloo | G6: =SUM(D6:F6) -> 0 | K6: =SUM(H6:J6) -> 0 | L6: =(G6+K6)*0.05 -> 0 | P6: =SUM(M6:O6) -> 0 | Q6: 25.75 | R6: 301.27 | S6: 335.38 | T6: =SUM(Q6:S6) -> 662.4 | U6: =(P6+T6)*0.05 -> 33.12 | V6: =27.52+28.42+12.91 -> 68.85 | W6: =50.05+28.42+166.32 -> 244.79 | X6: 86.58 | Y6: =SUM(V6:X6) -> 400.22 | Z6: 12.32 | AC6: =SUM(Z6:AB6) -> 12.32 | AD6: =(Y6+AC6)*0.1 -> 41.254 | AE6: 156.54 | AF6: 243.65 | AG6: 141.01 | AH6: =SUM(AE6:AG6) -> 541.2 | AI6: 54.866 | AJ6: 62.29 | AK6: 73.01 | AL6: =SUM(AI6:AK6) -> 190.166 | AM6: =(AH6+AL6)*0.1 -> 73.1366 | AQ6: =SUM(AN6:AP6) -> 0 | AU6: =SUM(AR6:AT6) -> 0 | AV6: =(AQ6+AU6)*0.05 -> 0 | AZ6: =SUM(AW6:AY6) -> 0 | BD6: =SUM(BA6:BC6) -> 0 | BE6: =(AZ6+BD6)*0.1 -> 0 | BI6: =SUM(BF6:BH6) -> 0 | BM6: =SUM(BJ6:BL6) -> 0 | BN6: =(BI6+BM6)*0.05 -> 0 | BR6: =SUM(BO6:BQ6) -> 0 | BV6: =SUM(BS6:BU6) -> 0 | BW6: =(BR6+BV6)*0.1 -> 0 | CA6: =SUM(BX6:BZ6) -> 0 | CB6: =CA6*0.025 -> 0 | CF6: =SUM(CC6:CE6) -> 0 | CG6: =CF6*0.05 -> 0 | CH6: =L6+U6+AD6+AM6+AV6+BN6+BW6+BE6+CB6+CG6 -> 147.5106
A7: 3510 | B7: Client B | C7: Windsor | G7: 0 | K7: 0 | L7: 0 | P7: 0 | Q7: 86.99 | R7: 864.04 | S7: 117.09 | T7: 1068.12 | U7: 53.406 | Y7: 0 | AC7: 0 | AD7: 0 | AE7: 2477.68 | AF7: -2048.79 | AG7: 647.45 | AH7: 1076.34 | AI7: 38.37 | AJ7: 176.08 | AK7: 4.8 | AL7: 219.25 | AM7: 129.559 | AQ7: 0 | AU7: 0 | AV7: 0 | AZ7: 0 | BD7: 0 | BE7: 0 | BG7: 210 | BI7: 210 | BJ7: 173.8 | BK7: 51.8 | BL7: 225.5 | BM7: 451.1 | BN7: 33.055 | BR7: 0 | BV7: 0 | BW7: 0 | CA7: 0 | CB7: 0 | CF7: 0 | CG7: 0 | CH7: 216.02
A8: 3562 | B8: Client C | C8: Gatineau | G8: 0 | K8: 0 | L8: 0 | P8: 0 | Q8: 32.6 | R8: 40.91 | S8: 46.08 | T8: 119.59 | U8: 5.9795 | Y8: 0 | Z8: 3.56 | AB8: 30.8 | AC8: 34.36 | AD8: 3.436 | AE8: 173.37 | AG8: 504.54 | AH8: 677.91 | AI8: 107.6 | AJ8: 34.67 | AK8: 65.5 | AL8: 207.77 | AM8: 88.568 | AQ8: 0 | AU8: 0 | AV8: 0 | AW8: =-49+157 -> 108 | AZ8: 108 | BD8: 0 | BE8: 10.8 | BI8: 0 | BM8: 0 | BN8: 0 | BR8: 0 | BV8: 0 | BW8: 0 | CA8: 0 | CB8: 0 | CF8: 0 | CG8: 0 | CH8: 108.7835
A9: 3579 | B9: Client D | C9: St-Jean-de-Dieu | G9: 0 | K9: 0 | L9: 0 | O9: 1255 | P9: 1255 | Q9: 15.9 | R9: 179.29 | S9: 70.2 | T9: 265.39 | U9: 76.0195 | Y9: 0 | Z9: 3.56 | AC9: 3.56 | AD9: 0.356 | AH9: 0 | AI9: 73.43 | AJ9: 312.752 | AK9: 129.57 | AL9: 515.752 | AM9: 51.5752 | AQ9: 0 | AU9: 0 | AV9: 0 | AZ9: 0 | BD9: 0 | BE9: 0 | BI9: 0 | BM9: 0 | BN9: 0 | BR9: 0 | BV9: 0 | BW9: 0 | CA9: 0 | CB9: 0 | CF9: 0 | CG9: 0 | CH9: 127.9507
A10: 3583 | B10: Client E | C10: Québec | G10: 0 | K10: 0 | L10: 0 | P10: 0 | R10: 453.31 | S10: 29.53 | T10: 482.84 | U10: 24.142 | Y10: 0 | AA10: 12.32 | AC10: 12.32 | AD10: 1.232 | AH10: 0 | AJ10: 81.13 | AK10: 71.97 | AL10: 153.1 | AM10: 15.31 | AQ10: 0 | AU10: 0 | AV10: 0 | AZ10: 0 | BD10: 0 | BE10: 0 | BI10: 0 | BK10: 9.2 | BM10: 9.2 | BN10: 0.46 | BR10: 0 | BV10: 0 | BW10: 0 | CA10: 0 | CB10: 0 | CF10: 0 | CG10: 0 | CH10: 41.144
A11: 3585 | B11: Client F | C11: Montréal | G11: 0 | K11: 0 | L11: 0 | P11: 0 | Q11: 1137.28 | R11: 54.07 | S11: 57.41 | T11: 1248.76 | U11: 62.438 | Y11: 0 | AA11: 7.12 | AC11: 7.12 | AD11: 0.712 | AF11: 1.14 | AH11: 1.14 | AI11: 1341.11 | AJ11: 43.46 | AK11: 26.68 | AL11: 1411.25 | AM11: 141.239 | AQ11: 0 | AU11: 0 | AV11: 0 | AZ11: 0 | BD11: 0 | BE11: 0 | BI11: 0 | BK11: 76 | BM11: 76 | BN11: 3.8 | BR11: 0 | BV11: 0 | BW11: 0 | CA11: 0 | CB11: 0 | CF11: 0 | CG11: 0 | CH11: 208.189
A12: 3518 | B12: Client G | C12: Cantley | G12: 0 | K12: 0 | L12: 0 | P12: 0 | T12: 0 | U12: 0 | Y12: 0 | AC12: 0 | AD12: 0 | AH12: 0 | AL12: 0 | AM12: 0 | AQ12: 0 | AU12: 0 | AV12: 0 | AZ12: 0 | BD12: 0 | BE12: 0 | BI12: 0 | BM12: 0 | BN12: 0 | BR12: 0 | BV12: 0 | BW12: 0 | CA12: 0 | CB12: 0 | CF12: 0 | CG12: 0 | CH12: 0
A13: 3428 | B13: Client H | C13: St-Rémi | G13: 0 | K13: 0 | L13: 0 | P13: 0 | Q13: 78.07 | R13: 46.92 | S13: 46.21 | T13: 171.2 | U13: 8.56 | Y13: 0 | Z13: 6.16 | AA13: 15.88 | AC13: 22.04 | AD13: 2.204 | AG13: 1415.41 | AH13: 1415.41 | AI13: 26.852 | AJ13: 38.43 | AK13: 7.44 | AL13: 72.722 | AM13: 148.8132 | AQ13: 0 | AU13: 0 | AV13: 0 | AZ13: 0 | BD13: 0 | BE13: 0 | BG13: 537.47 | BI13: 537.47 | BM13: 0 | BN13: 26.8735 | BR13: 0 | BV13: 0 | BW13: 0 | CA13: 0 | CB13: 0 | CF13: 0 | CG13: 0 | CH13: 186.4507
A14: 3281 | B14: Client I | C14: Pointe-aux-Trembles | G14: 0 | K14: 0 | L14: 0 | P14: 0 | Q14: -92.14 | R14: 120.02 | S14: 47.37 | T14: 75.25 | U14: 3.7625 | Y14: 0 | AC14: 0 | AD14: 0 | AE14: 2014.4 | AF14: 168.6 | AG14: 284.86 | AH14: 2467.86 | AI14: 151.15 | AJ14: 51.83 | AK14: 132.11 | AL14: 335.09 | AM14: 280.295 | AQ14: 0 | AU14: 0 | AV14: 0 | AZ14: 0 | BD14: 0 | BE14: 0 | BI14: 0 | BJ14: 315.3 | BM14: 315.3 | BN14: 15.765 | BR14: 0 | BV14: 0 | BW14: 0 | CA14: 0 | CB14: 0 | CF14: 0 | CG14: 0 | CH14: 299.8225
A15: 3523 | B15: Client J | C15: St-Lambert | G15: 0 | K15: 0 | L15: 0 | P15: 0 | Q15: 401.85 | R15: 339.49 | S15: 141.55 | T15: 882.89 | U15: 44.1445 | Y15: 0 | Z15: 12.32 | AA15: 25.6 | AB15: 15.29 | AC15: 53.21 | AD15: 5.321 | AG15: 596.27 | AH15: 596.27 | AI15: 125.15 | AJ15: 98.66 | AK15: 122.79 | AL15: 346.6 | AM15: 94.287 | AQ15: 0 | AU15: 0 | AV15: 0 | AW15: 193 | AX15: 139 | AY15: =100+361 -> 461 | AZ15: 793 | BD15: 0 | BE15: 79.3 | BI15: 0 | BJ15: 4.6 | BK15: 44.9 | BL15: 105.9 | BM15: 155.4 | BN15: 7.77 | BR15: 0 | BV15: 0 | BW15: 0 | CA15: 0 | CB15: 0 | CF15: 0 | CG15: 0 | CH15: 230.8225
A16: 3555 | B16: Client K | C16: Longueuil | G16: 0 | J16: 36.44 | K16: 36.44 | L16: 1.822 | P16: 0 | Q16: 55.61 | R16: 75.15 | S16: 18.2 | T16: 148.96 | U16: 7.448 | Y16: 0 | AB16: 2.91 | AC16: 2.91 | AD16: 0.291 | AH16: 0 | AI16: 51.65 | AJ16: 52.31 | AL16: 103.96 | AM16: 10.396 | AQ16: 0 | AU16: 0 | AV16: 0 | AZ16: 0 | BD16: 0 | BE16: 0 | BG16: 231 | BI16: 231 | BM16: 0 | BN16: 11.55 | BR16: 0 | BV16: 0 | BW16: 0 | CA16: 0 | CB16: 0 | CF16: 0 | CG16: 0 | CH16: 31.507
A17: 3345 | B17: Client L | C17: Shawinigan | G17: 0 | K17: 0 | L17: 0 | P17: 0 | Q17: 25.42 | R17: 20.5 | S17: 16.5 | T17: 62.42 | U17: 3.121 | Y17: 0 | Z17: 23 | AB17: 16.84 | AC17: 39.84 | AD17: 3.984 | AE17: 125.89 | AF17: -472.82 | AH17: -346.93 | AI17: 4.95 | AK17: 14.88 | AL17: 19.83 | AM17: -32.71 | AQ17: 0 | AU17: 0 | AV17: 0 | AZ17: 0 | BD17: 0 | BE17: 0 | BG17: 1660 | BI17: 1660 | BJ17: 849 | BL17: 816 | BM17: 1665 | BN17: 166.25 | BR17: 0 | BV17: 0 | BW17: 0 | CA17: 0 | CB17: 0 | CF17: 0 | CG17: 0 | CH17: 140.645
A18: 3543 | B18: Client M | C18: Plessisville | G18: 0 | K18: 0 | L18: 0 | P18: 0 | Q18: 485.48 | R18: 391.48 | S18: 71.08 | T18: 948.04 | U18: 47.402 | Y18: 0 | Z18: 27.52 | AB18: 24.64 | AC18: 52.16 | AD18: 5.216 | AG18: 264.27 | AH18: 264.27 | AI18: 147.686 | AJ18: 140.07 | AK18: 26.69 | AL18: 314.446 | AM18: 57.8716 | AQ18: 0 | AU18: 0 | AV18: 0 | AZ18: 0 | BD18: 0 | BE18: 0 | BG18: 545 | BI18: =SUM(BG18:BH18) -> 545 | BK18: 553.5 | BL18: 38 | BM18: 591.5 | BN18: 56.825 | BR18: 0 | BV18: 0 | BW18: 0 | CA18: 0 | CB18: 0 | CF18: 0 | CG18: 0 | CH18: 167.3146
A19: 3527 | B19: Client N | C19: St-Jean-sur-Richelieu | E19: 299.99 | F19: 224.49 | G19: 524.48 | K19: 0 | L19: 26.224 | P19: 0 | R19: 269.91 | S19: 100.01 | T19: 369.92 | U19: 18.496 | Y19: 0 | AB19: 63.64 | AC19: 63.64 | AD19: 6.364 | AF19: 564.67 | AG19: 743.64 | AH19: 1308.31 | AJ19: 249.742 | AK19: 242.75 | AL19: 492.492 | AM19: 180.0802 | AQ19: 0 | AU19: 0 | AV19: 0 | AX19: =2940+153 -> 3093 | AY19: =252+2467 -> 2719 | AZ19: 5812 | BD19: 0 | BE19: 581.2 | BI19: =SUM(BF19:BH19) -> 0 | BM19: 0 | BN19: 0 | BR19: 0 | BV19: 0 | BW19: 0 | BY19: 3213.1 | BZ19: 1305.15 | CA19: 4518.25 | CB19: 112.95625 | CF19: 0 | CG19: 0 | CH19: 925.32045
A20: 3133 | B20: Client O | C20: Matane | F20: 298.59 | G20: 298.59 | K20: 0 | L20: 14.9295 | N20: 991 | P20: 991 | Q20: 170.83 | R20: 641.18 | S20: 27.8 | T20: 839.81 | U20: 91.5405 | V20: =50.05+49.37+88.3 -> 187.72 | W20: =185.05+55.85 -> 240.9 | X20: 32.5 | Y20: 461.12 | AB20: 12.32 | AC20: 12.32 | AD20: 47.344 | AH20: 0 | AI20: 172.52 | AJ20: 7.8 | AK20: 25.52 | AL20: 205.84 | AM20: 20.584 | AQ20: 0 | AU20: 0 | AV20: 0 | AZ20: 0 | BD20: 0 | BE20: 0 | BG20: 386 | BI20: 386 | BJ20: 385.5 | BK20: 20 | BM20: 405.5 | BN20: 39.575 | BR20: 0 | BV20: 0 | BW20: 0 | BZ20: 69 | CA20: 69 | CB20: 1.725 | CF20: 0 | CG20: 0 | CH20: 215.698
A21: 3536 | B21: Client P | C21: Montréal | G21: 0 | K21: 0 | L21: 0 | P21: 0 | T21: 0 | U21: 0 | Y21: 0 | AC21: 0 | AD21: 0 | AH21: 0 | AL21: 0 | AM21: 0 | AQ21: 0 | AU21: 0 | AV21: 0 | AZ21: 0 | BD21: 0 | BE21: 0 | BG21: 1649.6 | BI21: 1649.6 | BM21: 0 | BN21: 82.48 | BR21: 0 | BV21: 0 | BW21: 0 | CA21: 0 | CB21: 0 | CF21: 0 | CG21: 0 | CH21: 82.48
A22: 3512 | B22: Client Q | C22: St-Jean-de-Matha | E22: 42.75 | G22: 42.75 | K22: 0 | L22: 2.1375 | M22: 1604 | N22: 25 | P22: 1629 | Q22: 526.38 | R22: 467.42 | S22: 19.84 | T22: 1013.64 | U22: 132.132 | Y22: 0 | Z22: 14.98 | AB22: 15.88 | AC22: 30.86 | AD22: 3.086 | AE22: 425.44 | AG22: 863.82 | AH22: 1289.26 | AI22: 336.26 | AJ22: 355.9 | AK22: 287.683 | AL22: 979.843 | AM22: 226.9103 | AQ22: 0 | AU22: 0 | AV22: 0 | AW22: =28+353.5+365.5 -> 747 | AX22: =140+1514.5+197 -> 1851.5 | AY22: =56+244.5 -> 300.5 | AZ22: 2899 | BD22: 0 | BE22: 289.9 | BI22: 0 | BM22: 0 | BN22: 0 | BR22: 0 | BV22: 0 | BW22: 0 | BX22: 138 | CA22: 138 | CB22: 3.45 | CF22: 0 | CG22: 0 | CH22: 657.6158
A23: 3436 | B23: Client R | C23: St-Hyacinthe | E23: 105.33 | F23: 118.38 | G23: 223.71 | K23: 0 | L23: 11.1855 | P23: 0 | R23: 13.68 | S23: 20.37 | T23: 34.05 | U23: 1.7025 | Y23: 0 | AA23: 12.32 | AB23: 6.16 | AC23: 18.48 | AD23: 1.848 | AG23: 456.32 | AH23: 456.32 | AJ23: 63.25 | AK23: 42.52 | AL23: 105.77 | AM23: 56.209 | AQ23: 0 | AU23: 0 | AV23: 0 | AZ23: 0 | BD23: 0 | BE23: 0 | BG23: 1234.46 | BI23: 1234.46 | BK23: 457.6 | BL23: 881.6 | BM23: 1339.2 | BN23: 128.683 | BR23: 0 | BV23: 0 | BW23: 0 | CA23: 0 | CB23: 0 | CF23: 0 | CG23: 0 | CH23: 199.628
A24: 3521 | B24: Client S | C24: Montmagny | G24: 0 | K24: 0 | L24: 0 | M24: 600 | P24: 600 | Q24: 253.42 | R24: 62.29 | S24: 91.62 | T24: 407.33 | U24: 50.3665 | Y24: 0 | Z24: 27.3 | AA24: 10.03 | AC24: 37.33 | AD24: 3.733 | AE24: 167.29 | AF24: 569.3 | AG24: 486.07 | AH24: 1222.66 | AI24: 182.82 | AJ24: 124.33 | AK24: 288.1 | AL24: 595.25 | AM24: 181.791 | AQ24: 0 | AU24: 0 | AV24: 0 | AZ24: 0 | BD24: 0 | BE24: 0 | BG24: 819.3 | BI24: 819.3 | BJ24: -268.64 | BM24: -268.64 | BN24: 27.533 | BR24: 0 | BV24: 0 | BW24: 0 | CA24: 0 | CB24: 0 | CF24: 0 | CG24: 0 | CH24: 263.4235
A25: 3199 | B25: Client T | C25: Jonquière | G25: 0 | K25: 0 | L25: 0 | P25: 0 | Q25: 41.75 | R25: 5.9 | S25: 6.58 | T25: 54.23 | U25: 2.7115 | Y25: 0 | AB25: 6.16 | AC25: 6.16 | AD25: 0.616 | AH25: 0 | AI25: 46.63 | AJ25: 37.44 | AL25: 84.07 | AM25: 8.407 | AQ25: 0 | AU25: 0 | AV25: 0 | AZ25: 0 | BD25: 0 | BE25: 0 | BI25: 0 | BK25: 9.2 | BL25: 9.2 | BM25: 18.4 | BN25: 0.92 | BR25: 0 | BV25: 0 | BW25: 0 | CA25: 0 | CB25: 0 | CF25: 0 | CG25: 0 | CH25: 12.6545
A26: 3291 | B26: Client U | C26: St-Tite | G26: 0 | K26: 0 | L26: 0 | P26: 0 | Q26: 89.5 | R26: 456.55 | S26: 125.55 | T26: 671.6 | U26: 33.58 | X26: 90.36 | Y26: 90.36 | Z26: 3.56 | AA26: 3.56 | AB26: 8.82 | AC26: 15.94 | AD26: 10.63 | AE26: 945.58 | AH26: 945.58 | AI26: 167.54 | AJ26: 301.4 | AK26: 31.01 | AL26: 499.95 | AM26: 144.553 | AQ26: 0 | AU26: 0 | AV26: 0 | AZ26: 0 | BD26: 0 | BE26: 0 | BI26: 0 | BM26: 0 | BN26: 0 | BR26: 0 | BV26: 0 | BW26: 0 | CA26: 0 | CB26: 0 | CF26: 0 | CG26: 0 | CH26: 188.763
A27: 3296 | B27: Client V | C27: Joliette | G27: 0 | K27: 0 | L27: 0 | P27: 0 | Q27: 112.93 | R27: 145.2 | S27: 170.15 | T27: 428.28 | U27: 21.414 | Y27: 0 | Z27: 14.24 | AA27: 10.68 | AB27: 30.12 | AC27: 55.04 | AD27: 5.504 | AE27: 427.49 | AF27: 858.01 | AG27: 661.53 | AH27: 1947.03 | AI27: 110.96 | AJ27: 16.08 | AK27: 85.23 | AL27: 212.27 | AM27: 215.93 | AQ27: 0 | AU27: 0 | AV27: 0 | AZ27: 0 | BD27: 0 | BE27: 0 | BG27: 907.82 | BI27: 907.82 | BJ27: 68.5 | BK27: 566.55 | BL27: 427.2 | BM27: 1062.25 | BN27: 98.5035 | BR27: 0 | BV27: 0 | BW27: 0 | CA27: 0 | CB27: 0 | CF27: 0 | CG27: 0 | CH27: 341.3515
A28: 195 | B28: Client W | C28: Sherbrooke | G28: 0 | K28: 0 | L28: 0 | P28: 0 | Q28: 15.68 | R28: 44 | S28: 19.97 | T28: 79.65 | U28: 3.9825 | Y28: 0 | AA28: 18.48 | AC28: 18.48 | AD28: 1.848 | AE28: -1979.43 | AF28: 171.42 | AG28: 283.79 | AH28: -1524.22 | AI28: 471.12 | AJ28: 126.95 | AK28: 81.478 | AL28: 679.548 | AM28: -84.4672 | AQ28: 0 | AU28: 0 | AV28: 0 | AZ28: 0 | BD28: 0 | BE28: 0 | BG28: 23 | BI28: 23 | BL28: 13.8 | BM28: 13.8 | BN28: 1.84 | BR28: 0 | BV28: 0 | BW28: 0 | CA28: 0 | CB28: 0 | CF28: 0 | CG28: 0 | CH28: -76.7967
A29: 3138 | B29: Client X | C29: Pierrefonds | G29: 0 | K29: 0 | L29: 0 | N29: 660 | P29: 660 | R29: 20.7 | S29: 17.05 | T29: 37.75 | U29: 34.8875 | Y29: 0 | AA29: 6.16 | AB29: 12.32 | AC29: 18.48 | AD29: 1.848 | AH29: 0 | AJ29: 291.08 | AK29: 42.1 | AL29: 333.18 | AM29: 33.318 | AQ29: 0 | AU29: 0 | AV29: 0 | AZ29: 0 | BD29: 0 | BE29: 0 | BG29: 562.05 | BI29: 562.05 | BK29: 562.05 | BM29: 562.05 | BN29: 56.205 | BR29: 0 | BV29: 0 | BW29: 0 | CA29: 0 | CB29: 0 | CF29: 0 | CG29: 0 | CH29: 126.2585
A30: 3567 | B30: Client Y | C30: Gatineau | G30: 0 | K30: 0 | L30: 0 | P30: 0 | Q30: 194.13 | S30: 140.47 | T30: 334.6 | U30: 16.73 | Y30: 0 | Z30: 22.35 | AB30: 19.5 | AC30: 41.85 | AD30: 4.185 | AH30: 0 | AI30: 21.22 | AJ30: 59.84 | AK30: 17.25 | AL30: 98.31 | AM30: 9.831 | AQ30: 0 | AU30: 0 | AV30: 0 | AW30: =50+282 -> 332 | AX30: =78+52 -> 130 | AZ30: 462 | BD30: 0 | BE30: 46.2 | BI30: 0 | BM30: 0 | BN30: 0 | BR30: 0 | BV30: 0 | BW30: 0 | CA30: 0 | CB30: 0 | CF30: 0 | CG30: 0 | CH30: 76.946
A31: 3580 | B31: Client Z | C31: Gatineau | G31: 0 | K31: 0 | L31: 0 | P31: 0 | Q31: 9.1 | R31: 149.95 | S31: 17.05 | T31: 176.1 | U31: 8.805 | Y31: 0 | AB31: 3.56 | AC31: 3.56 | AD31: 0.356 | AF31: 73.48 | AH31: 73.48 | AI31: 158.18 | AJ31: 6.31 | AK31: 168.08 | AL31: 332.57 | AM31: 40.605 | AQ31: 0 | AU31: 0 | AV31: 0 | AY31: 78 | AZ31: 78 | BD31: 0 | BE31: 7.8 | BG31: 56 | BI31: 56 | BK31: 75.5 | BM31: 75.5 | BN31: 6.575 | BR31: 0 | BV31: 0 | BW31: 0 | CA31: 0 | CB31: 0 | CF31: 0 | CG31: 0 | CH31: 64.141
A32: 3211 | B32: Client AA | C32: Laurier-Station | G32: 0 | K32: 0 | L32: 0 | P32: 0 | Q32: 56.11 | R32: 134.22 | S32: 84.86 | T32: 275.19 | U32: 13.7595 | Y32: 0 | AA32: 19.44 | AB32: 6.16 | AC32: 25.6 | AD32: 2.56 | AE32: 768.47 | AH32: 768.47 | AI32: 129.95 | AJ32: 232.84 | AK32: 335.334 | AL32: 698.124 | AM32: 146.6594 | AQ32: 0 | AU32: 0 | AV32: 0 | AZ32: 0 | BD32: 0 | BE32: 0 | BI32: 0 | BK32: 38 | BL32: 76 | BM32: 114 | BN32: 5.7 | BR32: 0 | BV32: 0 | BW32: 0 | CA32: 0 | CB32: 0 | CF32: 0 | CG32: 0 | CH32: 168.6789
A33: 3392 | B33: Client AB | C33: Sept-Iles | G33: 0 | K33: 0 | L33: 0 | N33: 555 | P33: 555 | Q33: 78.9 | R33: 145.54 | S33: 36.6 | T33: 261.04 | U33: 40.802 | Y33: 0 | Z33: 12.32 | AA33: 12.32 | AC33: 24.64 | AD33: 2.464 | AE33: 743.2 | AG33: 865.53 | AH33: 1608.73 | AI33: 902.63 | AJ33: 215.72 | AK33: 134.46 | AL33: 1252.81 | AM33: 286.154 | AQ33: 0 | AU33: 0 | AV33: 0 | AZ33: 0 | BD33: 0 | BE33: 0 | BI33: 0 | BJ33: 18.4 | BK33: 127.8 | BL33: 6.9 | BM33: 153.1 | BN33: 7.655 | BR33: 0 | BV33: 0 | BW33: 0 | BX33: 948.5 | BY33: 1127.52 | BZ33: 628.65 | CA33: 2704.67 | CB33: 67.61675 | CD33: 64.75 | CF33: 64.75 | CG33: 3.2375 | CH33: 407.92925
A34: 3496 | B34: Client AC | C34: Boucherville | G34: 0 | K34: 0 | L34: 0 | P34: 0 | S34: 30 | T34: 30 | U34: 1.5 | Y34: 0 | AB34: 4 | AC34: 4 | AD34: 0.4 | AH34: 0 | AK34: 3 | AL34: 3 | AM34: 0.3 | AQ34: 0 | AU34: 0 | AV34: 0 | AZ34: 0 | BD34: 0 | BE34: 0 | BI34: 0 | BM34: 0 | BN34: 0 | BR34: 0 | BV34: 0 | BW34: 0 | CA34: 0 | CB34: 0 | CF34: 0 | CG34: 0 | CH34: 2.2
A35: 3329 | B35: Client AD | C35: St-Bruno | G35: 0 | K35: 0 | L35: 0 | P35: 0 | Q35: 504.44 | R35: 102.41 | S35: 113.63 | T35: 720.48 | U35: 36.024 | Y35: 0 | Z35: 21.36 | AB35: 7.12 | AC35: 28.48 | AD35: 2.848 | AH35: 0 | AI35: 175.25 | AJ35: 306.012 | AK35: 148.63 | AL35: 629.892 | AM35: 62.9892 | AQ35: 0 | AU35: 0 | AV35: 0 | AZ35: 0 | BD35: 0 | BE35: 0 | BG35: -6.5 | BI35: -6.5 | BJ35: 163.6 | BK35: 316 | BL35: 51.8 | BM35: 531.4 | BN35: 26.245 | BR35: 0 | BV35: 0 | BW35: 0 | CA35: 0 | CB35: 0 | CF35: 0 | CG35: 0 | CH35: 128.1062
A36: 3335 | B36: Client AE | C36: Courcelette | G36: 0 | K36: 0 | L36: 0 | P36: 0 | Q36: 45.5 | S36: 64.75 | T36: 110.25 | U36: 5.5125 | Y36: 0 | Z36: 7.12 | AA36: 12.32 | AC36: 19.44 | AD36: 1.944 | AE36: 798.12 | AF36: -256.07 | AH36: 542.05 | AI36: 226.77 | AJ36: 105.37 | AK36: 78.59 | AL36: 410.73 | AM36: 95.278 | AQ36: 0 | AU36: 0 | AV36: 0 | AZ36: 0 | BD36: 0 | BE36: 0 | BI36: 0 | BJ36: 378.8 | BM36: 378.8 | BN36: 18.94 | BR36: 0 | BV36: 0 | BW36: 0 | CA36: 0 | CB36: 0 | CF36: 0 | CG36: 0 | CH36: 121.6745
A37: 3530 | B37: Client AF | C37: Sherbrooke | G37: 0 | K37: 0 | L37: 0 | N37: 395 | P37: 395 | Q37: 322.25 | R37: 246.55 | S37: 161.47 | T37: 730.27 | U37: 56.2635 | Y37: 0 | Z37: 3.56 | AB37: 6.16 | AC37: 9.72 | AD37: 0.972 | AE37: 207.88 | AF37: 194.83 | AH37: 402.71 | AJ37: 34.656 | AK37: 37.12 | AL37: 71.776 | AM37: 47.4486 | AQ37: 0 | AU37: 0 | AV37: 0 | AZ37: 0 | BD37: 0 | BE37: 0 | BG37: 267 | BI37: 267 | BJ37: 13.8 | BK37: 67.9 | BM37: 81.7 | BN37: 17.435 | BR37: 0 | BV37: 0 | BW37: 0 | CA37: 0 | CB37: 0 | CF37: 0 | CG37: 0 | CH37: 122.1191
A38: 3352 | B38: Client AG | C38: Montréal | D38: 876.92 | E38: 593.29 | F38: 1541.95 | G38: 3012.16 | K38: 0 | L38: 150.608 | N38: 304 | P38: 304 | Q38: 56.06 | R38: 332.4 | S38: 30.5 | T38: 418.96 | U38: 36.148 | V38: 17.96 | Y38: 17.96 | Z38: 39.84 | AA38: 126.84 | AB38: 90.38 | AC38: 257.06 | AD38: 27.502 | AE38: 1589.06 | AF38: -792.77 | AG38: 674.95 | AH38: 1471.24 | AI38: 110.58 | AJ38: 196.39 | AK38: 78.42 | AL38: 385.39 | AM38: 185.663 | AQ38: 0 | AU38: 0 | AV38: 0 | AZ38: 0 | BD38: 0 | BE38: 0 | BG38: 56.25 | BI38: 56.25 | BJ38: 13.8 | BK38: 103 | BL38: 20.7 | BM38: 137.5 | BN38: 9.6875 | BR38: 0 | BV38: 0 | BW38: 0 | CA38: 0 | CB38: 0 | CF38: 0 | CG38: 0 | CH38: 409.6085
A39: 4062 | B39: Client AH | C39: Eastman | G39: 0 | K39: 0 | L39: 0 | N39: 573 | P39: 573 | Q39: 13.26 | R39: 253 | S39: 76 | T39: 342.26 | U39: 45.763 | Y39: 0 | AB39: 6.16 | AC39: 6.16 | AD39: 0.616 | AE39: 1683.2 | AF39: -1685.7 | AG39: 85.89 | AH39: 83.39 | AI39: 4.29 | AJ39: 55.14 | AK39: 42.79 | AL39: 102.22 | AM39: 18.561 | AQ39: 0 | AU39: 0 | AV39: 0 | AZ39: 0 | BD39: 0 | BE39: 0 | BI39: 0 | BK39: 76 | BL39: 38 | BM39: 114 | BN39: 5.7 | BR39: 0 | BV39: 0 | BW39: 0 | CA39: 0 | CB39: 0 | CF39: 0 | CG39: 0 | CH39: 70.64
A40: 3148 | B40: Client AI | C40: Cap-aux-Meules | G40: 0 | K40: 0 | L40: 0 | M40: -89 | N40: 2345 | O40: -510 | P40: 1746 | Q40: 139.95 | R40: 29.35 | S40: 245.33 | T40: 414.63 | U40: 108.0315 | Y40: 0 | Z40: 18.48 | AC40: 18.48 | AD40: 1.848 | AE40: 867.19 | AF40: -1328.89 | AG40: 570.45 | AH40: 108.75 | AI40: 18.57 | AJ40: 71.82 | AK40: 33.69 | AL40: 124.08 | AM40: 23.283 | AQ40: 0 | AU40: 0 | AV40: 0 | AZ40: 0 | BD40: 0 | BE40: 0 | BI40: 0 | BL40: 152 | BM40: 152 | BN40: 7.6 | BR40: 0 | BV40: 0 | BW40: 0 | BX40: 1250.1 | BY40: 751.81 | BZ40: 755 | CA40: 2756.91 | CB40: 68.92275 | CF40: 0 | CG40: 0 | CH40: 209.68525
A41: 3528 | B41: Client AJ | C41: Ferme-Neuve | D41: 24.62 | G41: 24.62 | I41: 37.18 | K41: 37.18 | L41: 3.09 | M41: 16 | P41: 16 | R41: 93.5 | S41: 111.5 | T41: 205 | U41: 11.05 | Y41: 0 | AA41: 18.48 | AC41: 18.48 | AD41: 1.848 | AF41: 1360.91 | AH41: 1360.91 | AI41: 183.422 | AJ41: 44.29 | AK41: 16.13 | AL41: 243.842 | AM41: 160.4752 | AQ41: 0 | AU41: 0 | AV41: 0 | AZ41: 0 | BD41: 0 | BE41: 0 | BI41: 0 | BK41: 36.8 | BM41: 36.8 | BN41: 1.84 | BR41: 0 | BV41: 0 | BW41: 0 | CA41: 0 | CB41: 0 | CF41: 0 | CG41: 0 | CH41: 178.3032
A42: 3287 | B42: Client AK | C42: St-Zacharie | G42: 0 | K42: 0 | L42: 0 | P42: 0 | Q42: 22.95 | R42: 217.48 | S42: 16 | T42: 256.43 | U42: 12.8215 | Y42: 0 | AB42: 23 | AC42: 23 | AD42: 2.3 | AH42: 0 | AI42: 56.03 | AJ42: 57.08 | AK42: 46.77 | AL42: 159.88 | AM42: 15.988 | AQ42: 0 | AU42: 0 | AV42: 0 | AZ42: 0 | BD42: 0 | BE42: 0 | BI42: 0 | BM42: 0 | BN42: 0 | BR42: 0 | BV42: 0 | BW42: 0 | CA42: 0 | CB42: 0 | CF42: 0 | CG42: 0 | CH42: 31.1095
A43: 3377 | B43: Client AL | C43: Lévis | G43: 0 | K43: 0 | L43: 0 | P43: 0 | Q43: 22.27 | R43: 18.82 | S43: 79.12 | T43: 120.21 | U43: 6.0105 | Y43: 0 | Z43: 3.56 | AC43: 3.56 | AD43: 0.356 | AE43: -50.19 | AH43: -50.19 | AI43: 27.82 | AJ43: 28.21 | AK43: 41.514 | AL43: 97.544 | AM43: 4.7354 | AQ43: 0 | AU43: 0 | AV43: 0 | AZ43: 0 | BD43: 0 | BE43: 0 | BI43: 0 | BM43: 0 | BN43: 0 | BR43: 0 | BV43: 0 | BW43: 0 | CA43: 0 | CB43: 0 | CF43: 0 | CG43: 0 | CH43: 11.1019
A44: 3381 | B44: Client AM | C44: Ste-Luce | G44: 0 | K44: 0 | L44: 0 | P44: 0 | Q44: 5.12 | R44: 89.35 | S44: 37.58 | T44: 132.05 | U44: 6.6025 | V44: 28.42 | X44: 216.29 | Y44: 244.71 | AB44: 6.16 | AC44: 6.16 | AD44: 25.087 | AH44: 0 | AI44: 106.11 | AJ44: 17.01 | AK44: 129.85 | AL44: 252.97 | AM44: 25.297 | AQ44: 0 | AU44: 0 | AV44: 0 | AZ44: 0 | BD44: 0 | BE44: 0 | BI44: 0 | BM44: 0 | BN44: 0 | BR44: 0 | BV44: 0 | BW44: 0 | CA44: 0 | CB44: 0 | CF44: 0 | CG44: 0 | CH44: 56.9865
A45: 3576 | B45: Client AN | C45: Québec | G45: 0 | K45: 0 | L45: 0 | P45: 0 | Q45: 18.2 | R45: 40.6 | S45: 169.05 | T45: 227.85 | U45: 11.3925 | Y45: 0 | AC45: 0 | AD45: 0 | AH45: 0 | AI45: 8.69 | AJ45: 89.673 | AK45: 3.87 | AL45: 102.233 | AM45: 10.2233 | AQ45: 0 | AU45: 0 | AV45: 0 | AZ45: 0 | BD45: 0 | BE45: 0 | BG45: 10 | BI45: 10 | BK45: 38 | BM45: 38 | BN45: 2.4 | BR45: 0 | BV45: 0 | BW45: 0 | CA45: 0 | CB45: 0 | CF45: 0 | CG45: 0 | CH45: 24.0158
A46: 3548 | B46: Client AO | C46: Trois-Rivières | G46: 0 | K46: 0 | L46: 0 | P46: 0 | Q46: 51.62 | R46: 84.3 | S46: 78.5 | T46: 214.42 | U46: 10.721 | Y46: 0 | AA46: 3.56 | AC46: 3.56 | AD46: 0.356 | AF46: -548.41 | AH46: -548.41 | AI46: 37.75 | AJ46: 51.36 | AK46: 22.05 | AL46: 111.16 | AM46: -43.725 | AQ46: 0 | AU46: 0 | AV46: 0 | AW46: =100+770+147 -> 1017 | AX46: 124 | AZ46: 1141 | BD46: 0 | BE46: 114.1 | BI46: 0 | BK46: 38 | BM46: 38 | BN46: 1.9 | BR46: 0 | BV46: 0 | BW46: 0 | CA46: 0 | CB46: 0 | CF46: 0 | CG46: 0 | CH46: 83.352
A47: TOTAL CRÉDITS À FACTURER AUX FOURNISSEURS | G47: =SUM(G6:G46) -> 4126.31 | K47: =SUM(K6:K46) -> 73.62 | L47: =SUM(L6:L46) -> 209.9965 | P47: =SUM(P6:P46) -> 8724 | T47: 15041.86 | U47: 1188.293 | Y47: =SUM(Y6:Y46) -> 1214.37 | AC47: =SUM(AC6:AC46) -> 1010.32 | AD47: =SUM(AD6:AD46) -> 222.469 | AH47: =SUM(AH6:AH46) -> 18159.54 | AL47: 13154.68 | AM47: 3131.422 | AQ47: =SUM(AQ6:AQ46) -> 0 | AU47: =SUM(AU6:AU46) -> 0 | AV47: =SUM(AV6:AV46) -> 0 | AZ47: =SUM(AZ6:AZ46) -> 11293 | BD47: =SUM(BD6:BD46) -> 0 | BE47: =SUM(BE6:BE46) -> 1129.3 | BI47: =SUM(BI6:BI46) -> 9148.45 | BM47: =SUM(BM6:BM46) -> 8246.86 | BN47: =SUM(BN6:BN46) -> 869.7655 | BR47: =SUM(BR6:BR46) -> 0 | BV47: =SUM(BV6:BV46) -> 0 | BW47: =SUM(BW6:BW46) -> 0 | CA47: =SUM(CA6:CA46) -> 10186.83 | CB47: =SUM(CB6:CB46) -> 254.67075 | CF47: =SUM(CF6:CF46) -> 64.75 | CG47: =SUM(CG6:CG46) -> 3.2375 | CI47: =SUM(CH6:CH47) -> 7009.15425
CH48: =CG47+CB47+BE47+BW47+BN47+AV47+AM47+AD47+U47+L47 -> 7009.15425
B49: Ventes totales par fournisseur
B50: FOURN. A | C50: =G47+K47 -> 4199.93
B51: FOURN. B | C51: =P47+T47 -> 23765.86
B52: FOURN. C | C52: =Y47+AC47 -> 2224.69
B53: FOURN. D | C53: =AH47+AL47 -> 31314.22
B54: FOURN. E | C54: =AQ47+AU47 -> 0
B55: FOURN. F | C55: =AZ47+BD47 -> 11293
B56: FOURN. G | C56: =BI47+BM47 -> 17395.31
B57: FOURN. H | C57: =BR47+BV47 -> 0
B58: FOURN. I A+B | C58: =CA47+CF47 -> 10251.58

Sheet mais voudrais idéalement
A1: CREDITS TRIMESTRIELS OCTOBRE - NOVEMBRE - DECEMBRE 2015
A5: # client | B5: Nom de la succursale | C5: # item | D5: Fournisseur | E5: Montant
A6: 3520 | B6: Client A | C6: 1572 | D6: Fourn. B 5% | E6: 33.12
A7: 3520 | B7: Client A | C7: 1572 | D7: Fourn. C 10% | E7: 41.25
A8: 3520 | B8: Client A | C8: 1572 | D8: Fourn. D 10% | E8: 73.14
A9: SOUS-TOTAL CLIENT A | E9: =SUM(E6:E8) -> 147.51
A10: 3510 | B10: Client B | C10: 1572 | D10: Fourn. B 5% | E10: 53.41
A11: 3510 | B11: Client B | C11: 1572 | D11: Fourn. D 10% | E11: 129.56
A12: 3510 | B12: Client B | C12: 1572 | D12: Fourn. G 5% | E12: 33.06
A13: SOUS-TOTAL CLIENT B | E13: =SUM(E10:E12) -> 216.03
A14: 3562 | B14: Client C | C14: 1572 | D14: Fourn. B 5% | E14: 5.98
A15: 3562 | B15: Client C | C15: 1572 | D15: Fourn. C 10% | E15: 3.44
A16: 3562 | B16: Client C | C16: 1572 | D16: Fourn. D 10% | E16: 88.57
A17: 3562 | B17: Client C | C17: 1572 | D17: Fourn. F 10% | E17: 10.8
A18: SOUS-TOTAL CLIENT C | E18: =SUM(E14:E17) -> 108.79
A19: etc…. jusqu'à la ligne grise de la feuille Original qui contient du texte et non un numéro de client
A20: Mais d'autres clients peuvent se rajouter à la suite. Ce sera différent à chaque trimestre.
A21: La colonne C ici n'est pas obligatoire, c'est juste le code de facturation. C'est le même tout le temps.
A22: La facturation se fera à la main. Ce n'est pas un export de ce fichier vers un autre programme.
A23: Et dans la colonne D ici, le % se retrouve à la ligne 5 de la feuille Original. Il pourrait tout aussi bien
A24: être dans une autre colonne. Mais il doit y être car il devra être écrit sur la facture.
